{"text_format":"1","workbook":"xlsx","n_sheets":3,"sheets":["Auswahl Zukunftsbetrag","Datenbasis1","Hilfsvariablen"],"not_rendered":{"charts":0,"images":1,"macros":1,"external_links":0,"defined_names":71,"comments":0,"pivot_tables":0},"unopened":[],"bounds":{"document_bytes":16777216,"sheet_cells":100000,"rows_first":2000,"rows_last":500,"rows_between":2000,"halvings":0,"cell_chars":16384,"cell_head_chars":4096},"cells_cut":0,"cells_raw":0,"read":"whole","date_system":"1900"}

{"sheet":"Auswahl Zukunftsbetrag","index":0,"n_rows":40,"n_cols":4,"rows_kept":40,"cut":false,"hidden":false,"merged":[[17,0,17,1],[18,0,18,1],[32,0,32,1],[18,3,39,3],[36,0,36,1],[39,0,39,1],[38,0,38,1],[35,0,35,1],[31,0,31,1],[19,0,19,1],[20,0,20,1],[33,0,33,1]]}
["Tariflicher Zukunftsbetrag"]
[]
["Gesellschaft",null,null,"<--- Zum Starten eine Gesellschaft auswählen"]
[{"$f":"CONCATENATE(\"Eintritt vor \",IF(Hilfsvariablen!E13=\"Ja\",TEXT(Hilfsvariablen!E16,\"TT.MM.JJJJ\"),\"Stichtag\"))","v":"Eintritt vor Stichtag"},"Ja"]
["Mitarbeitergruppe","Tariflich"]
["Tarifgruppe","E01"]
["Tariftyp","-"]
["Tarifstufe","-"]
["Bundesland","Bayern"]
[{"$f":"CONCATENATE(\"Beschäftigungsgrad am \",IF(Hilfsvariablen!E13=\"Ja\",TEXT(Hilfsvariablen!E15,\"TT.MM.JJJJ\"),\"Stichtag\"),\" ( = tatsächl. Arbeitszeit)\")","v":"Beschäftigungsgrad am Stichtag ( = tatsächl. Arbeitszeit)"},1]
[{"$f":"CONCATENATE(\"Anzahl regelmäßige Wochenarbeitstage \",Hilfsvariablen!E14)","v":"Anzahl regelmäßige Wochenarbeitstage 2025"},5]
["Beschäftigungsverhältnis","unbefristet"]
[{"$f":"CONCATENATE(\"Elternzeit, Krankheit, Altersteilzeit, Freistellung Langzeitkonto \",IF(Hilfsvariablen!E13=\"Ja\", CONCATENATE(\"in 1/\",Hilfsvariablen!E14),\"am Stichtag\"),\"?\")","v":"Elternzeit, Krankheit, Altersteilzeit, Freistellung Langzeitkonto am Stichtag?"},"Nein"]
[{"$f":"CONCATENATE(\"ohne Entgeltanspruch am \",IF(Hilfsvariablen!E13=\"Ja\",TEXT(Hilfsvariablen!E15,\"TT.MM.JJJJ\"),\"Stichtag\"),\" (z.B. Elternzeit, Krankheit, …)\")","v":"ohne Entgeltanspruch am Stichtag (z.B. Elternzeit, Krankheit, …)"},"Nein"]
[{"$f":"CONCATENATE(\"Altersteilzeit aktiv/passiv am \",IF(Hilfsvariablen!E13=\"Ja\",TEXT(Hilfsvariablen!E15,\"TT.MM.JJJJ\"),\"Stichtag\"))","v":"Altersteilzeit aktiv/passiv am Stichtag"},"Nein"]
[{"$f":"CONCATENATE(\"In Freistellung aus dem Langzeitkonto am \",IF(Hilfsvariablen!E13=\"Ja\",TEXT(Hilfsvariablen!E15,\"TT.MM.JJJJ\"),\"Stichtag\"))","v":"In Freistellung aus dem Langzeitkonto am Stichtag"},"Nein"]
[]
[{"$f":"CONCATENATE(\"Ergebnis Zukunftsbetrag (auf Basis der zum 01.04.\",Hilfsvariablen!E14,\" geltenden Tariftabelle)\")","v":"Ergebnis Zukunftsbetrag (auf Basis der zum 01.04.2025 geltenden Tariftabelle)"},null,null,"Hinweise zur Nutzung"]
[{"$f":"Hilfsvariablen!B16","v":"Bitte wählen Sie eine Gesellschaft aus und füllen das Formular anschließend von oben nach unten aus!"},null,null,"- Zur vereinfachten Bearbeitung ist ein Makro notwendig, hierfür im Dialog <Makros aktivieren> klicken oder im gelben Menüband <Inhalt aktivieren> klicken\n\n- Das Formular ist von oben nach unten auszufüllen, da einige Auswahlmöglichkeiten voneinander abhängen\n\n- Ändert man nachträglich einen Eintrag, so sind alle folgenden Auswahlmöglichkeiten erneut auf gültige Werte zu prüfen (falls erforderlich: Button \"Formular komplett zurücksetzen\" nutzen)"]
[]
["Es stehen Ihnen verschiedene Verwendungsmöglichkeiten zur Verfügung.\nHier können Sie testen, wie sich die Wahl von Verwendungszwecken auf Ihren tariflichen Zukunftsbetrag auswirkt:"]
["Verwendungsmöglichkeiten","-"]
["PlusCard Tarif","select"]
["Möchten Sie Familienangehörige mitversichern?","Nein"]
["PlusCard Tarif für Familienangehörige","comfort"]
["Alter Ehepartner*in","-"]
["Alter Kind 1","-"]
["Alter Kind 2","-"]
["Alter Kind 3","-"]
["Anzahl gewünschter Freistellungstage","1 Tag Freistellung"]
[]
[]
[{"$f":"Hilfsvariablen!B29","v":"Bitte wählen Sie eine Gesellschaft aus und füllen das Formular anschließend von oben nach unten aus!"}]
["Wenn Sie für das nächste Jahr einen anderen Verwendungszweck wählen möchten, füllen Sie bitte das entsprechende Wahlformular aus und senden es bis zum 31.10. des jeweils aktuellen Jahres an Corporate Human Resources zurück."]
[]
["Hinweis"]
["Weitere Informationen zu den einzelnen Verwendungsmöglichkeiten und der Antragstellung finden Sie im Downloadbereich unserer Website:\nhttps://www.mitarbeiterbenefits-fme.de/de/leben-arbeit-familie/tariflicher-zukunftsbetrag"]
[]
["Disclaimer"]
[{"$f":"CONCATENATE(\"Dieses Dokument ist eine vereinfachte Darstellung der Regelungen des Tarifvertrags „Moderne Arbeitswelt“ vom 22.11.2019 und der \",\"Gesamtbetriebsvereinbarung „Tariflicher Zukunftsbetrag“ vom 12.08.2020 nebst aller Protokollnotizen und dient lediglich dem Informationszweck.\",\"\nNur der Tarifvertrag sowie die Gesamtbetriebsvereinbarung selbst sind rechtlich bindend.\nDie dargestellten Ergebnisse beruhen auf Ihren Eingaben.\",\" Für die Berechnungen übernimmt Ihr Arbeitgeber keine Haftung. Es werden keine persönlichen Daten gespeichert oder weiterverarbeitet.\",\"\n© Corporate Human Resources, Fresenius Medical Care AG, Januar \",Hilfsvariablen!E14)","v":"Dieses Dokument ist eine vereinfachte Darstellung der Regelungen des Tarifvertrags „Moderne Arbeitswelt“ vom 22.11.2019 und der Gesamtbetriebsvereinbarung „Tariflicher Zukunftsbetrag“ vom 12.08.2020 nebst aller Protokollnotizen und dient lediglich dem Informationszweck.\nNur der Tarifvertrag sowie die Gesamtbetriebsvereinbarung selbst sind rechtlich bindend.\nDie dargestellten Ergebnisse beruhen auf Ihren Eingaben. Für die Berechnungen übernimmt Ihr Arbeitgeber keine Haftung. Es werden keine persönlichen Daten gespeichert oder weiterverarbeitet.\n© Corporate Human Resources, Fresenius Medical Care AG, Januar 2025"}]

{"sheet":"Datenbasis1","index":1,"n_rows":501,"n_cols":48,"rows_kept":501,"cut":false,"hidden":true,"merged":[]}
["Gesellschaften","PassenderTarifvertrag",null,"Mitarbeitergruppe",null,"Tarifgruppe",null,null,null,null,null,"Tariftyp",null,null,null,null,"Bundesland",null,"Beschäftigungsverhältnis",null,"Ja/Nein",null,"ATZ",null,"Wochenarbeitstage",null,"Verwendungsmöglichkeiten",null,"PlusCard Tarife",null,null,"PlusCard Tarife Familienangehörige",null,null,null,"Alter Familienangehörige",null,null,null,null,"PlusCard Tariftabelle Familienangehörige",null,null,null,null,null,"Anzahl Freistellungstage"]
["Fresenius Medical Care AG","Ja",null,"Tariflich",null,"E01","-",null,null,null,null,"E01","-",null,null,null,"Bayern",null,"unbefristet",null,"Ja",null,"Nein",null,5,null,"Auszahlung",null,"select",12.67,null,"comfort","select",null,null,"Ehepartner","-","19 - 67 Jahre","ab 68 Jahren",null,{"$f":"CONCATENATE(AP2,\"_\",AQ2,\"_\",AR2)","v":"Ehepartner_-_comfort"},"Ehepartner","-","comfort",0,null,"1 Tag Freistellung",1]
["Fresenius Medical Care Deutschland GmbH","Ja",null,"Außertariflich",null,"E02","-",null,null,null,null,"E02","-",null,null,null,"anderes Bundesland",null,"befristet",null,"Nein",null,"Aktivphase",null,4,null,"Freistellung",null,"premium",16.48,null,"comfort","select","premium",null,"Kind","-","0 - 18 Jahre","19 - 25 Jahre",null,{"$f":"CONCATENATE(AP3,\"_\",AQ3,\"_\",AR3)","v":"Ehepartner_19 - 67 Jahre_comfort"},"Ehepartner","19 - 67 Jahre","comfort",6.38,null,"2 Tage Freistellung",2]
["Fresenius Medical Care GmbH","Ja",null,"Leitende Angestellte/Leitender Angestellter",null,"E03","-",null,null,null,null,"E03","-",null,null,null,null,null,null,null,null,null,"Passivphase",null,3,null,"Freistellung & Auszahlung",null,"prevent",70.010000000000005,null,"comfort","select","premium","prevent",null,null,null,null,null,"Ehepartner_ab 68 Jahren_comfort","Ehepartner","ab 68 Jahren","comfort",8.2899999999999991,null,"3 Tage Freistellung",3]
["ProCure Medical GmbH","Ja",null,"Auszubildende/Auszubildender",null,"E04","-",null,null,null,null,"E04","-",null,null,null,null,null,null,null,null,null,null,null,2,null,"Freistellung & Langzeitkonto",null,null,null,null,null,null,null,null,null,null,null,null,null,"Kind_-_comfort","Kind","-","comfort",0,null,"4 Tage Freistellung",4]
[null,null,null,"Duale Studentin/Dualer Student",null,"E05","A, bzw. 1","B, bzw. 2","C, bzw. 3",null,null,"E05","-",null,null,null,null,null,null,null,null,null,null,null,1,null,"Freistellung & PlusCard",null,null,null,null,null,null,null,null,null,null,null,null,null,"Kind_0 - 18 Jahre_comfort","Kind","0 - 18 Jahre","comfort",2.46,null,"5 Tage Freistellung",5]
[null,null,null,"Mini-Job",null,"E06","A, bzw. 1","B, bzw. 2","C, bzw. 3","D, bzw. 4",null,"E06","-",null,null,null,null,null,null,null,null,null,null,null,4.99,null,"Langzeitkonto",null,null,null,null,null,null,null,null,null,null,null,null,null,"Kind_19 - 25 Jahre_comfort","Kind","19 - 25 Jahre","comfort",6.38,null,"0 Tage Freistellung",0]
[null,null,null,"Midi-Job",null,"E07","A, bzw. 1","B, bzw. 2","C, bzw. 3","D, bzw. 4",null,"E07","-",null,null,null,null,null,null,null,null,null,null,null,4.9800000000000004,null,"Langzeitkonto & PlusCard",null,null,null,null,null,null,null,null,null,null,null,null,null,"Ehepartner_-_select","Ehepartner","-","select",0]
[null,null,null,null,null,"E08","A, bzw. 1","B, bzw. 2","C, bzw. 3","D, bzw. 4",null,"E08","-",null,null,null,null,null,null,null,null,null,null,null,4.97,null,"PlusCard",null,null,null,null,null,null,null,null,null,null,null,null,null,"Ehepartner_19 - 67 Jahre_select","Ehepartner","19 - 67 Jahre","select",22.97]
[null,null,null,null,null,"E09","A, bzw. 1","B, bzw. 2","C, bzw. 3","D, bzw. 4",null,"E09","kaufmännische Tätigkeit","technische Tätigkeit","Meister-Tätigkeit",null,null,null,null,null,null,null,null,null,4.96,null,null,null,null,null,null,null,null,null,null,null,null,null,null,null,"Ehepartner_ab 68 Jahren_select","Ehepartner","ab 68 Jahren","select",29.86]
[null,null,null,null,null,"E10","A, bzw. 1","B, bzw. 2","C, bzw. 3","D, bzw. 4",null,"E10","kaufmännische Tätigkeit","technische Tätigkeit","Meister-Tätigkeit",null,null,null,null,null,null,null,null,null,4.95,null,null,null,null,null,null,null,null,null,null,null,null,null,null,null,"Kind_-_select","Kind","-","select",0]
[null,null,null,null,null,"E11","A, bzw. 1","B, bzw. 2","C, bzw. 3","D, bzw. 4",null,"E11","kaufmännische Tätigkeit","technische Tätigkeit","Meister-Tätigkeit",null,null,null,null,null,null,null,null,null,4.9400000000000004,null,null,null,null,null,null,null,null,null,null,null,null,null,null,null,"Kind_0 - 18 Jahre_select","Kind","0 - 18 Jahre","select",8.84]
[null,null,null,null,null,"E12","A, bzw. 1","B, bzw. 2","C, bzw. 3","D, bzw. 4",null,"E12","kaufmännische Tätigkeit","technische Tätigkeit","Meister-Tätigkeit",null,null,null,null,null,null,null,null,null,4.93,null,null,null,null,null,null,null,null,null,null,null,null,null,null,null,"Kind_19 - 25 Jahre_select","Kind","19 - 25 Jahre","select",22.97]
[null,null,null,null,null,"E13","-",null,null,null,null,"E13","kaufmännische Tätigkeit","technische Tätigkeit","Meister-Tätigkeit",null,null,null,null,null,null,null,null,null,4.92,null,null,null,null,null,null,null,null,null,null,null,null,null,null,null,"Ehepartner_-_premium","Ehepartner","-","premium",0]
[null,null,null,null,null,"Azubi","1. Jahr","2. Jahr","3. Jahr","4. Jahr",null,"Azubi","-",null,null,null,null,null,null,null,null,null,null,null,4.91,null,null,null,null,null,null,null,null,null,null,null,null,null,null,null,"Ehepartner_19 - 67 Jahre_premium","Ehepartner","19 - 67 Jahre","premium",27.92]
[null,null,null,null,null,null,null,null,null,null,null,null,null,null,null,null,null,null,null,null,null,null,null,null,4.9000000000000004,null,null,null,null,null,null,null,null,null,null,null,null,null,null,null,"Ehepartner_ab 68 Jahren_premium","Ehepartner","ab 68 Jahren","premium",36.299999999999997]
[null,null,null,null,null,null,null,null,null,null,null,null,null,null,null,null,null,null,null,null,null,null,null,null,4.8899999999999997,null,null,null,null,null,null,null,null,null,null,null,null,null,null,null,"Kind_-_premium","Kind","-","premium",0]
["Entgelttabellen",null,null,null,null,null,null,null,null,null,null,null,null,null,null,null,null,null,null,null,null,null,null,null,4.88,null,null,null,null,null,null,null,null,null,null,null,null,null,null,null,"Kind_0 - 18 Jahre_premium","Kind","0 - 18 Jahre","premium",10.74]
[{"$f":"CONCATENATE(B19,\"_\",C19,\"_\",D19,\"_\",E19,\"_\",F19)","v":"2025_anderes Bundesland_E01_-_-"},2025,"anderes Bundesland","E01","-","-",3113,null,null,null,null,null,null,null,null,null,null,null,null,null,null,null,null,null,4.87,null,null,null,null,null,null,null,null,null,null,null,null,null,null,null,"Kind_19 - 25 Jahre_premium","Kind","19 - 25 Jahre","premium",27.92]
[{"$f":"CONCATENATE(B20,\"_\",C20,\"_\",D20,\"_\",E20,\"_\",F20)","v":"2025_anderes Bundesland_E02_-_-"},2025,"anderes Bundesland","E02","-","-",3253,null,null,null,null,null,null,null,null,null,null,null,null,null,null,null,null,null,4.8600000000000003,null,null,null,null,null,null,null,null,null,null,null,null,null,null,null,"Ehepartner_-_prevent","Ehepartner","-","prevent",0]
[{"$f":"CONCATENATE(B21,\"_\",C21,\"_\",D21,\"_\",E21,\"_\",F21)","v":"2025_anderes Bundesland_E03_-_-"},2025,"anderes Bundesland","E03","-","-",3320,null,null,null,null,null,null,null,null,null,null,null,null,null,null,null,null,null,4.8499999999999996,null,null,null,null,null,null,null,null,null,null,null,null,null,null,null,"Ehepartner_19 - 67 Jahre_prevent","Ehepartner","19 - 67 Jahre","prevent",97.51]
["2025_anderes Bundesland_E04_-_-",2025,"anderes Bundesland","E04","-","-",3364,null,null,null,null,null,null,null,null,null,null,null,null,null,null,null,null,null,4.84,null,"FreistellungKombiMöglich_FreistellungMöglich_Befristet_AlterteilzeitPassivOderOhneEntgeltOderFreigestellt",null,null,null,null,null,null,null,null,null,null,null,null,null,"Ehepartner_ab 68 Jahren_prevent","Ehepartner","ab 68 Jahren","prevent",126.76]
["2025_anderes Bundesland_E05_A, bzw. 1_-",2025,"anderes Bundesland","E05","A, bzw. 1","-",3461,null,null,null,null,null,null,null,null,null,null,null,null,null,null,null,null,null,4.83,null,"Ja_Ja_Ja_Nein","Auszahlung","Freistellung","Freistellung & Auszahlung",null,null,null,null,null,null,null,null,null,null,"Kind_-_prevent","Kind","-","prevent",0]
["2025_anderes Bundesland_E05_B, bzw. 2_-",2025,"anderes Bundesland","E05","B, bzw. 2","-",3548,null,null,null,null,null,null,null,null,null,null,null,null,null,null,null,null,null,4.82,null,"Ja_Ja_Ja_Ja","Auszahlung","Freistellung","Freistellung & Auszahlung",null,null,null,null,null,null,null,null,null,null,"Kind_0 - 18 Jahre_prevent","Kind","0 - 18 Jahre","prevent",37.51]
["2025_anderes Bundesland_E05_C, bzw. 3_-",2025,"anderes Bundesland","E05","C, bzw. 3","-",3634,null,null,null,null,null,null,null,null,null,null,null,null,null,null,null,null,null,4.8099999999999996,null,"Ja_Ja_Nein_Nein","Auszahlung","Freistellung","Freistellung & Auszahlung","Freistellung & Langzeitkonto","Freistellung & PlusCard","Langzeitkonto","Langzeitkonto & PlusCard","PlusCard",null,null,null,null,null,"Kind_19 - 25 Jahre_prevent","Kind","19 - 25 Jahre","prevent",97.51]
["2025_anderes Bundesland_E06_A, bzw. 1_-",2025,"anderes Bundesland","E06","A, bzw. 1","-",3548,null,null,null,null,null,null,null,null,null,null,null,null,null,null,null,null,null,4.8,null,"Ja_Ja_Nein_Ja","Auszahlung","Freistellung","Freistellung & Auszahlung","Freistellung & PlusCard","PlusCard"]
["2025_anderes Bundesland_E06_B, bzw. 2_-",2025,"anderes Bundesland","E06","B, bzw. 2","-",3761,null,null,null,null,null,null,null,null,null,null,null,null,null,null,null,null,null,4.79,null,"Ja_Nein_Ja_Nein","Auszahlung"]
["2025_anderes Bundesland_E06_C, bzw. 3_-",2025,"anderes Bundesland","E06","C, bzw. 3","-",3938,null,null,null,null,null,null,null,null,null,null,null,null,null,null,null,null,null,4.78,null,"Ja_Nein_Ja_Ja","Auszahlung"]
["2025_anderes Bundesland_E06_D, bzw. 4_-",2025,"anderes Bundesland","E06","D, bzw. 4","-",4116,null,null,null,null,null,null,null,null,null,null,null,null,null,null,null,null,null,4.7699999999999996,null,"Ja_Nein_Nein_Nein","Auszahlung","Langzeitkonto","Langzeitkonto & PlusCard","PlusCard"]
["2025_anderes Bundesland_E07_A, bzw. 1_-",2025,"anderes Bundesland","E07","A, bzw. 1","-",3678,null,null,null,null,null,null,null,null,null,null,null,null,null,null,null,null,null,4.76,null,"Ja_Nein_Nein_Ja","Auszahlung","PlusCard"]
["2025_anderes Bundesland_E07_B, bzw. 2_-",2025,"anderes Bundesland","E07","B, bzw. 2","-",3899,null,null,null,null,null,null,null,null,null,null,null,null,null,null,null,null,null,4.75,null,"Nein_Ja_Ja_Nein","Auszahlung","Freistellung"]
["2025_anderes Bundesland_E07_C, bzw. 3_-",2025,"anderes Bundesland","E07","C, bzw. 3","-",4119,null,null,null,null,null,null,null,null,null,null,null,null,null,null,null,null,null,4.74,null,"Nein_Ja_Ja_Ja","Auszahlung","Freistellung"]
["2025_anderes Bundesland_E07_D, bzw. 4_-",2025,"anderes Bundesland","E07","D, bzw. 4","-",4340,null,null,null,null,null,null,null,null,null,null,null,null,null,null,null,null,null,4.7300000000000004,null,"Nein_Ja_Nein_Nein","Auszahlung","Freistellung","Langzeitkonto","Langzeitkonto & PlusCard","PlusCard"]
["2025_anderes Bundesland_E08_A, bzw. 1_-",2025,"anderes Bundesland","E08","A, bzw. 1","-",3805,null,null,null,null,null,null,null,null,null,null,null,null,null,null,null,null,null,4.72,null,"Nein_Ja_Nein_Ja","Auszahlung","Freistellung","PlusCard"]
["2025_anderes Bundesland_E08_B, bzw. 2_-",2025,"anderes Bundesland","E08","B, bzw. 2","-",4033,null,null,null,null,null,null,null,null,null,null,null,null,null,null,null,null,null,4.71,null,"Nein_Nein_Ja_Nein","Auszahlung"]
["2025_anderes Bundesland_E08_C, bzw. 3_-",2025,"anderes Bundesland","E08","C, bzw. 3","-",4300,null,null,null,null,null,null,null,null,null,null,null,null,null,null,null,null,null,4.7,null,"Nein_Nein_Ja_Ja","Auszahlung"]
["2025_anderes Bundesland_E08_D, bzw. 4_-",2025,"anderes Bundesland","E08","D, bzw. 4","-",4566,null,null,null,null,null,null,null,null,null,null,null,null,null,null,null,null,null,4.6900000000000004,null,"Nein_Nein_Nein_Nein","Auszahlung","Langzeitkonto","Langzeitkonto & PlusCard","PlusCard"]
["2025_anderes Bundesland_E09_A, bzw. 1_kaufmännische Tätigkeit",2025,"anderes Bundesland","E09","A, bzw. 1","kaufmännische Tätigkeit",3565,null,null,null,null,null,null,null,null,null,null,null,null,null,null,null,null,null,4.68,null,"Nein_Nein_Nein_Ja","Auszahlung","PlusCard"]
["2025_anderes Bundesland_E09_B, bzw. 2_kaufmännische Tätigkeit",2025,"anderes Bundesland","E09","B, bzw. 2","kaufmännische Tätigkeit",3902,null,null,null,null,null,null,null,null,null,null,null,null,null,null,null,null,null,4.67]
["2025_anderes Bundesland_E09_C, bzw. 3_kaufmännische Tätigkeit",2025,"anderes Bundesland","E09","C, bzw. 3","kaufmännische Tätigkeit",4287,null,null,null,null,null,null,null,null,null,null,null,null,null,null,null,null,null,4.66]
["2025_anderes Bundesland_E09_D, bzw. 4_kaufmännische Tätigkeit",2025,"anderes Bundesland","E09","D, bzw. 4","kaufmännische Tätigkeit",4817,null,null,null,null,null,null,null,null,null,null,null,null,null,null,null,null,null,4.6500000000000004]
["2025_anderes Bundesland_E09_A, bzw. 1_technische Tätigkeit",2025,"anderes Bundesland","E09","A, bzw. 1","technische Tätigkeit",3921,null,null,null,null,null,null,null,null,null,null,null,null,null,null,null,null,null,4.6399999999999997]
["2025_anderes Bundesland_E09_B, bzw. 2_technische Tätigkeit",2025,"anderes Bundesland","E09","B, bzw. 2","technische Tätigkeit",4291,null,null,null,null,null,null,null,null,null,null,null,null,null,null,null,null,null,4.63]
["2025_anderes Bundesland_E09_C, bzw. 3_technische Tätigkeit",2025,"anderes Bundesland","E09","C, bzw. 3","technische Tätigkeit",4715,null,null,null,null,null,null,null,null,null,null,null,null,null,null,null,null,null,4.62]
["2025_anderes Bundesland_E09_D, bzw. 4_technische Tätigkeit",2025,"anderes Bundesland","E09","D, bzw. 4","technische Tätigkeit",5298,null,null,null,null,null,null,null,null,null,null,null,null,null,null,null,null,null,4.6100000000000003]
["2025_anderes Bundesland_E09_A, bzw. 1_Meister-Tätigkeit",2025,"anderes Bundesland","E09","A, bzw. 1","Meister-Tätigkeit",3911,null,null,null,null,null,null,null,null,null,null,null,null,null,null,null,null,null,4.5999999999999996]
["2025_anderes Bundesland_E09_B, bzw. 2_Meister-Tätigkeit",2025,"anderes Bundesland","E09","B, bzw. 2","Meister-Tätigkeit",4281,null,null,null,null,null,null,null,null,null,null,null,null,null,null,null,null,null,4.59]
["2025_anderes Bundesland_E09_C, bzw. 3_Meister-Tätigkeit",2025,"anderes Bundesland","E09","C, bzw. 3","Meister-Tätigkeit",4704,null,null,null,null,null,null,null,null,null,null,null,null,null,null,null,null,null,4.58]
["2025_anderes Bundesland_E09_D, bzw. 4_Meister-Tätigkeit",2025,"anderes Bundesland","E09","D, bzw. 4","Meister-Tätigkeit",5285,null,null,null,null,null,null,null,null,null,null,null,null,null,null,null,null,null,4.57]
[{"$f":"CONCATENATE(B50,\"_\",C50,\"_\",D50,\"_\",E50,\"_\",F50)","v":"2025_anderes Bundesland_E10_A, bzw. 1_kaufmännische Tätigkeit"},2025,"anderes Bundesland","E10","A, bzw. 1","kaufmännische Tätigkeit",4108,null,null,null,null,null,null,null,null,null,null,null,null,null,null,null,null,null,4.5599999999999996]
["2025_anderes Bundesland_E10_B, bzw. 2_kaufmännische Tätigkeit",2025,"anderes Bundesland","E10","B, bzw. 2","kaufmännische Tätigkeit",4486,null,null,null,null,null,null,null,null,null,null,null,null,null,null,null,null,null,4.55]
["2025_anderes Bundesland_E10_C, bzw. 3_kaufmännische Tätigkeit",2025,"anderes Bundesland","E10","C, bzw. 3","kaufmännische Tätigkeit",4919,null,null,null,null,null,null,null,null,null,null,null,null,null,null,null,null,null,4.54]
["2025_anderes Bundesland_E10_D, bzw. 4_kaufmännische Tätigkeit",2025,"anderes Bundesland","E10","D, bzw. 4","kaufmännische Tätigkeit",5405,null,null,null,null,null,null,null,null,null,null,null,null,null,null,null,null,null,4.53]
["2025_anderes Bundesland_E10_A, bzw. 1_technische Tätigkeit",2025,"anderes Bundesland","E10","A, bzw. 1","technische Tätigkeit",4406,null,null,null,null,null,null,null,null,null,null,null,null,null,null,null,null,null,4.5199999999999996]
["2025_anderes Bundesland_E10_B, bzw. 2_technische Tätigkeit",2025,"anderes Bundesland","E10","B, bzw. 2","technische Tätigkeit",4812,null,null,null,null,null,null,null,null,null,null,null,null,null,null,null,null,null,4.51]
["2025_anderes Bundesland_E10_C, bzw. 3_technische Tätigkeit",2025,"anderes Bundesland","E10","C, bzw. 3","technische Tätigkeit",5275,null,null,null,null,null,null,null,null,null,null,null,null,null,null,null,null,null,4.5]
["2025_anderes Bundesland_E10_D, bzw. 4_technische Tätigkeit",2025,"anderes Bundesland","E10","D, bzw. 4","technische Tätigkeit",5797,null,null,null,null,null,null,null,null,null,null,null,null,null,null,null,null,null,4.49]
["2025_anderes Bundesland_E10_A, bzw. 1_Meister-Tätigkeit",2025,"anderes Bundesland","E10","A, bzw. 1","Meister-Tätigkeit",4349,null,null,null,null,null,null,null,null,null,null,null,null,null,null,null,null,null,4.4800000000000004]
["2025_anderes Bundesland_E10_B, bzw. 2_Meister-Tätigkeit",2025,"anderes Bundesland","E10","B, bzw. 2","Meister-Tätigkeit",4750,null,null,null,null,null,null,null,null,null,null,null,null,null,null,null,null,null,4.47]
["2025_anderes Bundesland_E10_C, bzw. 3_Meister-Tätigkeit",2025,"anderes Bundesland","E10","C, bzw. 3","Meister-Tätigkeit",5208,null,null,null,null,null,null,null,null,null,null,null,null,null,null,null,null,null,4.46]
["2025_anderes Bundesland_E10_D, bzw. 4_Meister-Tätigkeit",2025,"anderes Bundesland","E10","D, bzw. 4","Meister-Tätigkeit",5723,null,null,null,null,null,null,null,null,null,null,null,null,null,null,null,null,null,4.45]
[{"$f":"CONCATENATE(B62,\"_\",C62,\"_\",D62,\"_\",E62,\"_\",F62)","v":"2025_anderes Bundesland_E11_A, bzw. 1_kaufmännische Tätigkeit"},2025,"anderes Bundesland","E11","A, bzw. 1","kaufmännische Tätigkeit",4669,null,null,null,null,null,null,null,null,null,null,null,null,null,null,null,null,null,4.4400000000000004]
["2025_anderes Bundesland_E11_B, bzw. 2_kaufmännische Tätigkeit",2025,"anderes Bundesland","E11","B, bzw. 2","kaufmännische Tätigkeit",5088,null,null,null,null,null,null,null,null,null,null,null,null,null,null,null,null,null,4.43]
["2025_anderes Bundesland_E11_C, bzw. 3_kaufmännische Tätigkeit",2025,"anderes Bundesland","E11","C, bzw. 3","kaufmännische Tätigkeit",5447,null,null,null,null,null,null,null,null,null,null,null,null,null,null,null,null,null,4.42]
["2025_anderes Bundesland_E11_D, bzw. 4_kaufmännische Tätigkeit",2025,"anderes Bundesland","E11","D, bzw. 4","kaufmännische Tätigkeit",5986,null,null,null,null,null,null,null,null,null,null,null,null,null,null,null,null,null,4.41]
["2025_anderes Bundesland_E11_A, bzw. 1_technische Tätigkeit",2025,"anderes Bundesland","E11","A, bzw. 1","technische Tätigkeit",4920,null,null,null,null,null,null,null,null,null,null,null,null,null,null,null,null,null,4.4000000000000004]
["2025_anderes Bundesland_E11_B, bzw. 2_technische Tätigkeit",2025,"anderes Bundesland","E11","B, bzw. 2","technische Tätigkeit",5362,null,null,null,null,null,null,null,null,null,null,null,null,null,null,null,null,null,4.3899999999999997]
["2025_anderes Bundesland_E11_C, bzw. 3_technische Tätigkeit",2025,"anderes Bundesland","E11","C, bzw. 3","technische Tätigkeit",5740,null,null,null,null,null,null,null,null,null,null,null,null,null,null,null,null,null,4.38]
["2025_anderes Bundesland_E11_D, bzw. 4_technische Tätigkeit",2025,"anderes Bundesland","E11","D, bzw. 4","technische Tätigkeit",6308,null,null,null,null,null,null,null,null,null,null,null,null,null,null,null,null,null,4.37]
["2025_anderes Bundesland_E11_A, bzw. 1_Meister-Tätigkeit",2025,"anderes Bundesland","E11","A, bzw. 1","Meister-Tätigkeit",4811,null,null,null,null,null,null,null,null,null,null,null,null,null,null,null,null,null,4.3600000000000003]
["2025_anderes Bundesland_E11_B, bzw. 2_Meister-Tätigkeit",2025,"anderes Bundesland","E11","B, bzw. 2","Meister-Tätigkeit",5243,null,null,null,null,null,null,null,null,null,null,null,null,null,null,null,null,null,4.3499999999999996]
["2025_anderes Bundesland_E11_C, bzw. 3_Meister-Tätigkeit",2025,"anderes Bundesland","E11","C, bzw. 3","Meister-Tätigkeit",5613,null,null,null,null,null,null,null,null,null,null,null,null,null,null,null,null,null,4.34]
["2025_anderes Bundesland_E11_D, bzw. 4_Meister-Tätigkeit",2025,"anderes Bundesland","E11","D, bzw. 4","Meister-Tätigkeit",6168,null,null,null,null,null,null,null,null,null,null,null,null,null,null,null,null,null,4.33]
[{"$f":"CONCATENATE(B74,\"_\",C74,\"_\",D74,\"_\",E74,\"_\",F74)","v":"2025_anderes Bundesland_E12_A, bzw. 1_kaufmännische Tätigkeit"},2025,"anderes Bundesland","E12","A, bzw. 1","kaufmännische Tätigkeit",5015,null,null,null,null,null,null,null,null,null,null,null,null,null,null,null,null,null,4.32]
["2025_anderes Bundesland_E12_B, bzw. 2_kaufmännische Tätigkeit",2025,"anderes Bundesland","E12","B, bzw. 2","kaufmännische Tätigkeit",5465,null,null,null,null,null,null,null,null,null,null,null,null,null,null,null,null,null,4.3099999999999996]
["2025_anderes Bundesland_E12_C, bzw. 3_kaufmännische Tätigkeit",2025,"anderes Bundesland","E12","C, bzw. 3","kaufmännische Tätigkeit",5915,null,null,null,null,null,null,null,null,null,null,null,null,null,null,null,null,null,4.3]
["2025_anderes Bundesland_E12_D, bzw. 4_kaufmännische Tätigkeit",2025,"anderes Bundesland","E12","D, bzw. 4","kaufmännische Tätigkeit",6429,null,null,null,null,null,null,null,null,null,null,null,null,null,null,null,null,null,4.29]
["2025_anderes Bundesland_E12_A, bzw. 1_technische Tätigkeit",2025,"anderes Bundesland","E12","A, bzw. 1","technische Tätigkeit",5315,null,null,null,null,null,null,null,null,null,null,null,null,null,null,null,null,null,4.28]
["2025_anderes Bundesland_E12_B, bzw. 2_technische Tätigkeit",2025,"anderes Bundesland","E12","B, bzw. 2","technische Tätigkeit",5792,null,null,null,null,null,null,null,null,null,null,null,null,null,null,null,null,null,4.2699999999999996]
["2025_anderes Bundesland_E12_C, bzw. 3_technische Tätigkeit",2025,"anderes Bundesland","E12","C, bzw. 3","technische Tätigkeit",6269,null,null,null,null,null,null,null,null,null,null,null,null,null,null,null,null,null,4.26]
["2025_anderes Bundesland_E12_D, bzw. 4_technische Tätigkeit",2025,"anderes Bundesland","E12","D, bzw. 4","technische Tätigkeit",6814,null,null,null,null,null,null,null,null,null,null,null,null,null,null,null,null,null,4.25]
["2025_anderes Bundesland_E12_A, bzw. 1_Meister-Tätigkeit",2025,"anderes Bundesland","E12","A, bzw. 1","Meister-Tätigkeit",5173,null,null,null,null,null,null,null,null,null,null,null,null,null,null,null,null,null,4.24]
["2025_anderes Bundesland_E12_B, bzw. 2_Meister-Tätigkeit",2025,"anderes Bundesland","E12","B, bzw. 2","Meister-Tätigkeit",5637,null,null,null,null,null,null,null,null,null,null,null,null,null,null,null,null,null,4.2300000000000004]
["2025_anderes Bundesland_E12_C, bzw. 3_Meister-Tätigkeit",2025,"anderes Bundesland","E12","C, bzw. 3","Meister-Tätigkeit",6101,null,null,null,null,null,null,null,null,null,null,null,null,null,null,null,null,null,4.22]
["2025_anderes Bundesland_E12_D, bzw. 4_Meister-Tätigkeit",2025,"anderes Bundesland","E12","D, bzw. 4","Meister-Tätigkeit",6632,null,null,null,null,null,null,null,null,null,null,null,null,null,null,null,null,null,4.21]
[{"$f":"CONCATENATE(B86,\"_\",C86,\"_\",D86,\"_\",E86,\"_\",F86)","v":"2025_anderes Bundesland_E13_-_kaufmännische Tätigkeit"},2025,"anderes Bundesland","E13","-","kaufmännische Tätigkeit",6878,null,null,null,null,null,null,null,null,null,null,null,null,null,null,null,null,null,4.2]
["2025_anderes Bundesland_E13_-_technische Tätigkeit",2025,"anderes Bundesland","E13","-","technische Tätigkeit",7321,null,null,null,null,null,null,null,null,null,null,null,null,null,null,null,null,null,4.1900000000000004]
["2025_anderes Bundesland_E13_-_Meister-Tätigkeit",2025,"anderes Bundesland","E13","-","Meister-Tätigkeit",7097,null,null,null,null,null,null,null,null,null,null,null,null,null,null,null,null,null,4.18]
["2025_anderes Bundesland_Azubi_1. Jahr_-",2025,"anderes Bundesland","Azubi","1. Jahr","-",1156,null,null,null,null,null,null,null,null,null,null,null,null,null,null,null,null,null,4.17]
[{"$f":"CONCATENATE(B90,\"_\",C90,\"_\",D90,\"_\",E90,\"_\",F90)","v":"2025_anderes Bundesland_Azubi_2. Jahr_-"},2025,"anderes Bundesland","Azubi","2. Jahr","-",1247,null,null,null,null,null,null,null,null,null,null,null,null,null,null,null,null,null,4.16]
["2025_anderes Bundesland_Azubi_3. Jahr_-",2025,"anderes Bundesland","Azubi","3. Jahr","-",1315,null,null,null,null,null,null,null,null,null,null,null,null,null,null,null,null,null,4.1500000000000004]
["2025_anderes Bundesland_Azubi_4. Jahr_-",2025,"anderes Bundesland","Azubi","4. Jahr","-",1412,null,null,null,null,null,null,null,null,null,null,null,null,null,null,null,null,null,4.1399999999999997]
[{"$f":"CONCATENATE(B93,\"_\",C93,\"_\",D93,\"_\",E93,\"_\",F93)","v":"2025_Bayern_E01_-_-"},2025,"Bayern","E01","-","-",3080,null,null,null,null,null,null,null,null,null,null,null,null,null,null,null,null,null,4.13]
[{"$f":"CONCATENATE(B94,\"_\",C94,\"_\",D94,\"_\",E94,\"_\",F94)","v":"2025_Bayern_E02_-_-"},2025,"Bayern","E02","-","-",3217,null,null,null,null,null,null,null,null,null,null,null,null,null,null,null,null,null,4.12]
[{"$f":"CONCATENATE(B95,\"_\",C95,\"_\",D95,\"_\",E95,\"_\",F95)","v":"2025_Bayern_E03_-_-"},2025,"Bayern","E03","-","-",3291,null,null,null,null,null,null,null,null,null,null,null,null,null,null,null,null,null,4.1100000000000003]
["2025_Bayern_E04_-_-",2025,"Bayern","E04","-","-",3363,null,null,null,null,null,null,null,null,null,null,null,null,null,null,null,null,null,4.0999999999999996]
["2025_Bayern_E05_A, bzw. 1_-",2025,"Bayern","E05","A, bzw. 1","-",3442,null,null,null,null,null,null,null,null,null,null,null,null,null,null,null,null,null,4.09]
["2025_Bayern_E05_B, bzw. 2_-",2025,"Bayern","E05","B, bzw. 2","-",3528,null,null,null,null,null,null,null,null,null,null,null,null,null,null,null,null,null,4.08]
["2025_Bayern_E05_C, bzw. 3_-",2025,"Bayern","E05","C, bzw. 3","-",3614,null,null,null,null,null,null,null,null,null,null,null,null,null,null,null,null,null,4.07]
["2025_Bayern_E06_A, bzw. 1_-",2025,"Bayern","E06","A, bzw. 1","-",3521,null,null,null,null,null,null,null,null,null,null,null,null,null,null,null,null,null,4.0599999999999996]
["2025_Bayern_E06_B, bzw. 2_-",2025,"Bayern","E06","B, bzw. 2","-",3732,null,null,null,null,null,null,null,null,null,null,null,null,null,null,null,null,null,4.05]
["2025_Bayern_E06_C, bzw. 3_-",2025,"Bayern","E06","C, bzw. 3","-",3908,null,null,null,null,null,null,null,null,null,null,null,null,null,null,null,null,null,4.04]
["2025_Bayern_E06_D, bzw. 4_-",2025,"Bayern","E06","D, bzw. 4","-",4084,null,null,null,null,null,null,null,null,null,null,null,null,null,null,null,null,null,4.03]
["2025_Bayern_E07_A, bzw. 1_-",2025,"Bayern","E07","A, bzw. 1","-",3653,null,null,null,null,null,null,null,null,null,null,null,null,null,null,null,null,null,4.0199999999999996]
["2025_Bayern_E07_B, bzw. 2_-",2025,"Bayern","E07","B, bzw. 2","-",3872,null,null,null,null,null,null,null,null,null,null,null,null,null,null,null,null,null,4.01]
["2025_Bayern_E07_C, bzw. 3_-",2025,"Bayern","E07","C, bzw. 3","-",4091,null,null,null,null,null,null,null,null,null,null,null,null,null,null,null,null,null,3.99]
["2025_Bayern_E07_D, bzw. 4_-",2025,"Bayern","E07","D, bzw. 4","-",4311,null,null,null,null,null,null,null,null,null,null,null,null,null,null,null,null,null,3.98]
["2025_Bayern_E08_A, bzw. 1_-",2025,"Bayern","E08","A, bzw. 1","-",3781,null,null,null,null,null,null,null,null,null,null,null,null,null,null,null,null,null,3.97]
["2025_Bayern_E08_B, bzw. 2_-",2025,"Bayern","E08","B, bzw. 2","-",4008,null,null,null,null,null,null,null,null,null,null,null,null,null,null,null,null,null,3.96]
["2025_Bayern_E08_C, bzw. 3_-",2025,"Bayern","E08","C, bzw. 3","-",4273,null,null,null,null,null,null,null,null,null,null,null,null,null,null,null,null,null,3.95]
["2025_Bayern_E08_D, bzw. 4_-",2025,"Bayern","E08","D, bzw. 4","-",4537,null,null,null,null,null,null,null,null,null,null,null,null,null,null,null,null,null,3.94]
["2025_Bayern_E09_A, bzw. 1_kaufmännische Tätigkeit",2025,"Bayern","E09","A, bzw. 1","kaufmännische Tätigkeit",3600,null,null,null,null,null,null,null,null,null,null,null,null,null,null,null,null,null,3.93]
["2025_Bayern_E09_B, bzw. 2_kaufmännische Tätigkeit",2025,"Bayern","E09","B, bzw. 2","kaufmännische Tätigkeit",3941,null,null,null,null,null,null,null,null,null,null,null,null,null,null,null,null,null,3.92]
["2025_Bayern_E09_C, bzw. 3_kaufmännische Tätigkeit",2025,"Bayern","E09","C, bzw. 3","kaufmännische Tätigkeit",4330,null,null,null,null,null,null,null,null,null,null,null,null,null,null,null,null,null,3.91]
["2025_Bayern_E09_D, bzw. 4_kaufmännische Tätigkeit",2025,"Bayern","E09","D, bzw. 4","kaufmännische Tätigkeit",4865,null,null,null,null,null,null,null,null,null,null,null,null,null,null,null,null,null,3.9]
["2025_Bayern_E09_A, bzw. 1_technische Tätigkeit",2025,"Bayern","E09","A, bzw. 1","technische Tätigkeit",3689,null,null,null,null,null,null,null,null,null,null,null,null,null,null,null,null,null,3.89]
["2025_Bayern_E09_B, bzw. 2_technische Tätigkeit",2025,"Bayern","E09","B, bzw. 2","technische Tätigkeit",4038,null,null,null,null,null,null,null,null,null,null,null,null,null,null,null,null,null,3.88]
["2025_Bayern_E09_C, bzw. 3_technische Tätigkeit",2025,"Bayern","E09","C, bzw. 3","technische Tätigkeit",4437,null,null,null,null,null,null,null,null,null,null,null,null,null,null,null,null,null,3.87]
["2025_Bayern_E09_D, bzw. 4_technische Tätigkeit",2025,"Bayern","E09","D, bzw. 4","technische Tätigkeit",4985,null,null,null,null,null,null,null,null,null,null,null,null,null,null,null,null,null,3.86]
["2025_Bayern_E09_A, bzw. 1_Meister-Tätigkeit",2025,"Bayern","E09","A, bzw. 1","Meister-Tätigkeit",3689,null,null,null,null,null,null,null,null,null,null,null,null,null,null,null,null,null,3.85]
["2025_Bayern_E09_B, bzw. 2_Meister-Tätigkeit",2025,"Bayern","E09","B, bzw. 2","Meister-Tätigkeit",4038,null,null,null,null,null,null,null,null,null,null,null,null,null,null,null,null,null,3.84]
["2025_Bayern_E09_C, bzw. 3_Meister-Tätigkeit",2025,"Bayern","E09","C, bzw. 3","Meister-Tätigkeit",4437,null,null,null,null,null,null,null,null,null,null,null,null,null,null,null,null,null,3.83]
["2025_Bayern_E09_D, bzw. 4_Meister-Tätigkeit",2025,"Bayern","E09","D, bzw. 4","Meister-Tätigkeit",4985,null,null,null,null,null,null,null,null,null,null,null,null,null,null,null,null,null,3.82]
["2025_Bayern_E10_A, bzw. 1_kaufmännische Tätigkeit",2025,"Bayern","E10","A, bzw. 1","kaufmännische Tätigkeit",4036,null,null,null,null,null,null,null,null,null,null,null,null,null,null,null,null,null,3.81]
["2025_Bayern_E10_B, bzw. 2_kaufmännische Tätigkeit",2025,"Bayern","E10","B, bzw. 2","kaufmännische Tätigkeit",4407,null,null,null,null,null,null,null,null,null,null,null,null,null,null,null,null,null,3.8]
["2025_Bayern_E10_C, bzw. 3_kaufmännische Tätigkeit",2025,"Bayern","E10","C, bzw. 3","kaufmännische Tätigkeit",4832,null,null,null,null,null,null,null,null,null,null,null,null,null,null,null,null,null,3.79]
["2025_Bayern_E10_D, bzw. 4_kaufmännische Tätigkeit",2025,"Bayern","E10","D, bzw. 4","kaufmännische Tätigkeit",5310,null,null,null,null,null,null,null,null,null,null,null,null,null,null,null,null,null,3.78]
["2025_Bayern_E10_A, bzw. 1_technische Tätigkeit",2025,"Bayern","E10","A, bzw. 1","technische Tätigkeit",4161,null,null,null,null,null,null,null,null,null,null,null,null,null,null,null,null,null,3.77]
["2025_Bayern_E10_B, bzw. 2_technische Tätigkeit",2025,"Bayern","E10","B, bzw. 2","technische Tätigkeit",4544,null,null,null,null,null,null,null,null,null,null,null,null,null,null,null,null,null,3.76]
["2025_Bayern_E10_C, bzw. 3_technische Tätigkeit",2025,"Bayern","E10","C, bzw. 3","technische Tätigkeit",4982,null,null,null,null,null,null,null,null,null,null,null,null,null,null,null,null,null,3.75]
["2025_Bayern_E10_D, bzw. 4_technische Tätigkeit",2025,"Bayern","E10","D, bzw. 4","technische Tätigkeit",5475,null,null,null,null,null,null,null,null,null,null,null,null,null,null,null,null,null,3.74]
["2025_Bayern_E10_A, bzw. 1_Meister-Tätigkeit",2025,"Bayern","E10","A, bzw. 1","Meister-Tätigkeit",4124,null,null,null,null,null,null,null,null,null,null,null,null,null,null,null,null,null,3.73]
["2025_Bayern_E10_B, bzw. 2_Meister-Tätigkeit",2025,"Bayern","E10","B, bzw. 2","Meister-Tätigkeit",4504,null,null,null,null,null,null,null,null,null,null,null,null,null,null,null,null,null,3.72]
["2025_Bayern_E10_C, bzw. 3_Meister-Tätigkeit",2025,"Bayern","E10","C, bzw. 3","Meister-Tätigkeit",4938,null,null,null,null,null,null,null,null,null,null,null,null,null,null,null,null,null,3.71]
["2025_Bayern_E10_D, bzw. 4_Meister-Tätigkeit",2025,"Bayern","E10","D, bzw. 4","Meister-Tätigkeit",5426,null,null,null,null,null,null,null,null,null,null,null,null,null,null,null,null,null,3.7]
["2025_Bayern_E11_A, bzw. 1_kaufmännische Tätigkeit",2025,"Bayern","E11","A, bzw. 1","kaufmännische Tätigkeit",4498,null,null,null,null,null,null,null,null,null,null,null,null,null,null,null,null,null,3.69]
["2025_Bayern_E11_B, bzw. 2_kaufmännische Tätigkeit",2025,"Bayern","E11","B, bzw. 2","kaufmännische Tätigkeit",4902,null,null,null,null,null,null,null,null,null,null,null,null,null,null,null,null,null,3.68]
["2025_Bayern_E11_C, bzw. 3_kaufmännische Tätigkeit",2025,"Bayern","E11","C, bzw. 3","kaufmännische Tätigkeit",5248,null,null,null,null,null,null,null,null,null,null,null,null,null,null,null,null,null,3.67]
["2025_Bayern_E11_D, bzw. 4_kaufmännische Tätigkeit",2025,"Bayern","E11","D, bzw. 4","kaufmännische Tätigkeit",5767,null,null,null,null,null,null,null,null,null,null,null,null,null,null,null,null,null,3.66]
["2025_Bayern_E11_A, bzw. 1_technische Tätigkeit",2025,"Bayern","E11","A, bzw. 1","technische Tätigkeit",4649,null,null,null,null,null,null,null,null,null,null,null,null,null,null,null,null,null,3.65]
["2025_Bayern_E11_B, bzw. 2_technische Tätigkeit",2025,"Bayern","E11","B, bzw. 2","technische Tätigkeit",5066,null,null,null,null,null,null,null,null,null,null,null,null,null,null,null,null,null,3.64]
["2025_Bayern_E11_C, bzw. 3_technische Tätigkeit",2025,"Bayern","E11","C, bzw. 3","technische Tätigkeit",5424,null,null,null,null,null,null,null,null,null,null,null,null,null,null,null,null,null,3.63]
["2025_Bayern_E11_D, bzw. 4_technische Tätigkeit",2025,"Bayern","E11","D, bzw. 4","technische Tätigkeit",5960,null,null,null,null,null,null,null,null,null,null,null,null,null,null,null,null,null,3.62]
["2025_Bayern_E11_A, bzw. 1_Meister-Tätigkeit",2025,"Bayern","E11","A, bzw. 1","Meister-Tätigkeit",4521,null,null,null,null,null,null,null,null,null,null,null,null,null,null,null,null,null,3.61]
["2025_Bayern_E11_B, bzw. 2_Meister-Tätigkeit",2025,"Bayern","E11","B, bzw. 2","Meister-Tätigkeit",4927,null,null,null,null,null,null,null,null,null,null,null,null,null,null,null,null,null,3.6]
["2025_Bayern_E11_C, bzw. 3_Meister-Tätigkeit",2025,"Bayern","E11","C, bzw. 3","Meister-Tätigkeit",5274,null,null,null,null,null,null,null,null,null,null,null,null,null,null,null,null,null,3.59]
["2025_Bayern_E11_D, bzw. 4_Meister-Tätigkeit",2025,"Bayern","E11","D, bzw. 4","Meister-Tätigkeit",5796,null,null,null,null,null,null,null,null,null,null,null,null,null,null,null,null,null,3.58]
["2025_Bayern_E12_A, bzw. 1_kaufmännische Tätigkeit",2025,"Bayern","E12","A, bzw. 1","kaufmännische Tätigkeit",4852,null,null,null,null,null,null,null,null,null,null,null,null,null,null,null,null,null,3.57]
["2025_Bayern_E12_B, bzw. 2_kaufmännische Tätigkeit",2025,"Bayern","E12","B, bzw. 2","kaufmännische Tätigkeit",5287,null,null,null,null,null,null,null,null,null,null,null,null,null,null,null,null,null,3.56]
["2025_Bayern_E12_C, bzw. 3_kaufmännische Tätigkeit",2025,"Bayern","E12","C, bzw. 3","kaufmännische Tätigkeit",5722,null,null,null,null,null,null,null,null,null,null,null,null,null,null,null,null,null,3.55]
["2025_Bayern_E12_D, bzw. 4_kaufmännische Tätigkeit",2025,"Bayern","E12","D, bzw. 4","kaufmännische Tätigkeit",6220,null,null,null,null,null,null,null,null,null,null,null,null,null,null,null,null,null,3.54]
["2025_Bayern_E12_A, bzw. 1_technische Tätigkeit",2025,"Bayern","E12","A, bzw. 1","technische Tätigkeit",5022,null,null,null,null,null,null,null,null,null,null,null,null,null,null,null,null,null,3.53]
["2025_Bayern_E12_B, bzw. 2_technische Tätigkeit",2025,"Bayern","E12","B, bzw. 2","technische Tätigkeit",5473,null,null,null,null,null,null,null,null,null,null,null,null,null,null,null,null,null,3.52]
["2025_Bayern_E12_C, bzw. 3_technische Tätigkeit",2025,"Bayern","E12","C, bzw. 3","technische Tätigkeit",5924,null,null,null,null,null,null,null,null,null,null,null,null,null,null,null,null,null,3.51]
["2025_Bayern_E12_D, bzw. 4_technische Tätigkeit",2025,"Bayern","E12","D, bzw. 4","technische Tätigkeit",6439,null,null,null,null,null,null,null,null,null,null,null,null,null,null,null,null,null,3.5]
["2025_Bayern_E12_A, bzw. 1_Meister-Tätigkeit",2025,"Bayern","E12","A, bzw. 1","Meister-Tätigkeit",4864,null,null,null,null,null,null,null,null,null,null,null,null,null,null,null,null,null,3.49]
["2025_Bayern_E12_B, bzw. 2_Meister-Tätigkeit",2025,"Bayern","E12","B, bzw. 2","Meister-Tätigkeit",5301,null,null,null,null,null,null,null,null,null,null,null,null,null,null,null,null,null,3.48]
["2025_Bayern_E12_C, bzw. 3_Meister-Tätigkeit",2025,"Bayern","E12","C, bzw. 3","Meister-Tätigkeit",5737,null,null,null,null,null,null,null,null,null,null,null,null,null,null,null,null,null,3.47]
[{"$f":"CONCATENATE(B159,\"_\",C159,\"_\",D159,\"_\",E159,\"_\",F159)","v":"2025_Bayern_E12_D, bzw. 4_Meister-Tätigkeit"},2025,"Bayern","E12","D, bzw. 4","Meister-Tätigkeit",6236,null,null,null,null,null,null,null,null,null,null,null,null,null,null,null,null,null,3.46]
["2025_Bayern_E13_-_kaufmännische Tätigkeit",2025,"Bayern","E13","-","kaufmännische Tätigkeit",6679,null,null,null,null,null,null,null,null,null,null,null,null,null,null,null,null,null,3.45]
["2025_Bayern_E13_-_technische Tätigkeit",2025,"Bayern","E13","-","technische Tätigkeit",6926,null,null,null,null,null,null,null,null,null,null,null,null,null,null,null,null,null,3.44]
["2025_Bayern_E13_-_Meister-Tätigkeit",2025,"Bayern","E13","-","Meister-Tätigkeit",6679,null,null,null,null,null,null,null,null,null,null,null,null,null,null,null,null,null,3.43]
["2025_Bayern_Azubi_1. Jahr_-",2025,"Bayern","Azubi","1. Jahr","-",1176,null,null,null,null,null,null,null,null,null,null,null,null,null,null,null,null,null,3.42]
["2025_Bayern_Azubi_2. Jahr_-",2025,"Bayern","Azubi","2. Jahr","-",1249,null,null,null,null,null,null,null,null,null,null,null,null,null,null,null,null,null,3.41]
["2025_Bayern_Azubi_3. Jahr_-",2025,"Bayern","Azubi","3. Jahr","-",1318,null,null,null,null,null,null,null,null,null,null,null,null,null,null,null,null,null,3.4]
["2025_Bayern_Azubi_4. Jahr_-",2025,"Bayern","Azubi","4. Jahr","-",1412,null,null,null,null,null,null,null,null,null,null,null,null,null,null,null,null,null,3.39]
[null,null,null,null,null,null,null,null,null,null,null,null,null,null,null,null,null,null,null,null,null,null,null,null,3.38]
[null,null,null,null,null,null,null,null,null,null,null,null,null,null,null,null,null,null,null,null,null,null,null,null,3.37]
[null,null,null,null,null,null,null,null,null,null,null,null,null,null,null,null,null,null,null,null,null,null,null,null,3.36]
[null,null,null,null,null,null,null,null,null,null,null,null,null,null,null,null,null,null,null,null,null,null,null,null,3.35]
[null,null,null,null,null,null,null,null,null,null,null,null,null,null,null,null,null,null,null,null,null,null,null,null,3.34]
[null,null,null,null,null,null,null,null,null,null,null,null,null,null,null,null,null,null,null,null,null,null,null,null,3.33]
[null,null,null,null,null,null,null,null,null,null,null,null,null,null,null,null,null,null,null,null,null,null,null,null,3.32]
[null,null,null,null,null,null,null,null,null,null,null,null,null,null,null,null,null,null,null,null,null,null,null,null,3.31]
[null,null,null,null,null,null,null,null,null,null,null,null,null,null,null,null,null,null,null,null,null,null,null,null,3.3]
[null,null,null,null,null,null,null,null,null,null,null,null,null,null,null,null,null,null,null,null,null,null,null,null,3.29]
[null,null,null,null,null,null,null,null,null,null,null,null,null,null,null,null,null,null,null,null,null,null,null,null,3.28]
[null,null,null,null,null,null,null,null,null,null,null,null,null,null,null,null,null,null,null,null,null,null,null,null,3.27]
[null,null,null,null,null,null,null,null,null,null,null,null,null,null,null,null,null,null,null,null,null,null,null,null,3.26]
[null,null,null,null,null,null,null,null,null,null,null,null,null,null,null,null,null,null,null,null,null,null,null,null,3.25]
[null,null,null,null,null,null,null,null,null,null,null,null,null,null,null,null,null,null,null,null,null,null,null,null,3.24]
[null,null,null,null,null,null,null,null,null,null,null,null,null,null,null,null,null,null,null,null,null,null,null,null,3.23]
[null,null,null,null,null,null,null,null,null,null,null,null,null,null,null,null,null,null,null,null,null,null,null,null,3.22]
[null,null,null,null,null,null,null,null,null,null,null,null,null,null,null,null,null,null,null,null,null,null,null,null,3.21]
[null,null,null,null,null,null,null,null,null,null,null,null,null,null,null,null,null,null,null,null,null,null,null,null,3.2]
[null,null,null,null,null,null,null,null,null,null,null,null,null,null,null,null,null,null,null,null,null,null,null,null,3.19]
[null,null,null,null,null,null,null,null,null,null,null,null,null,null,null,null,null,null,null,null,null,null,null,null,3.18]
[null,null,null,null,null,null,null,null,null,null,null,null,null,null,null,null,null,null,null,null,null,null,null,null,3.17]
[null,null,null,null,null,null,null,null,null,null,null,null,null,null,null,null,null,null,null,null,null,null,null,null,3.16]
[null,null,null,null,null,null,null,null,null,null,null,null,null,null,null,null,null,null,null,null,null,null,null,null,3.15]
[null,null,null,null,null,null,null,null,null,null,null,null,null,null,null,null,null,null,null,null,null,null,null,null,3.14]
[null,null,null,null,null,null,null,null,null,null,null,null,null,null,null,null,null,null,null,null,null,null,null,null,3.13]
[null,null,null,null,null,null,null,null,null,null,null,null,null,null,null,null,null,null,null,null,null,null,null,null,3.12]
[null,null,null,null,null,null,null,null,null,null,null,null,null,null,null,null,null,null,null,null,null,null,null,null,3.11]
[null,null,null,null,null,null,null,null,null,null,null,null,null,null,null,null,null,null,null,null,null,null,null,null,3.1]
[null,null,null,null,null,null,null,null,null,null,null,null,null,null,null,null,null,null,null,null,null,null,null,null,3.09]
[null,null,null,null,null,null,null,null,null,null,null,null,null,null,null,null,null,null,null,null,null,null,null,null,3.08]
[null,null,null,null,null,null,null,null,null,null,null,null,null,null,null,null,null,null,null,null,null,null,null,null,3.07]
[null,null,null,null,null,null,null,null,null,null,null,null,null,null,null,null,null,null,null,null,null,null,null,null,3.06]
[null,null,null,null,null,null,null,null,null,null,null,null,null,null,null,null,null,null,null,null,null,null,null,null,3.05]
[null,null,null,null,null,null,null,null,null,null,null,null,null,null,null,null,null,null,null,null,null,null,null,null,3.04]
[null,null,null,null,null,null,null,null,null,null,null,null,null,null,null,null,null,null,null,null,null,null,null,null,3.03]
[null,null,null,null,null,null,null,null,null,null,null,null,null,null,null,null,null,null,null,null,null,null,null,null,3.02]
[null,null,null,null,null,null,null,null,null,null,null,null,null,null,null,null,null,null,null,null,null,null,null,null,3.01]
[null,null,null,null,null,null,null,null,null,null,null,null,null,null,null,null,null,null,null,null,null,null,null,null,2.99]
[null,null,null,null,null,null,null,null,null,null,null,null,null,null,null,null,null,null,null,null,null,null,null,null,2.98]
[null,null,null,null,null,null,null,null,null,null,null,null,null,null,null,null,null,null,null,null,null,null,null,null,2.97]
[null,null,null,null,null,null,null,null,null,null,null,null,null,null,null,null,null,null,null,null,null,null,null,null,2.96]
[null,null,null,null,null,null,null,null,null,null,null,null,null,null,null,null,null,null,null,null,null,null,null,null,2.95]
[null,null,null,null,null,null,null,null,null,null,null,null,null,null,null,null,null,null,null,null,null,null,null,null,2.94]
[null,null,null,null,null,null,null,null,null,null,null,null,null,null,null,null,null,null,null,null,null,null,null,null,2.93]
[null,null,null,null,null,null,null,null,null,null,null,null,null,null,null,null,null,null,null,null,null,null,null,null,2.92]
[null,null,null,null,null,null,null,null,null,null,null,null,null,null,null,null,null,null,null,null,null,null,null,null,2.91]
[null,null,null,null,null,null,null,null,null,null,null,null,null,null,null,null,null,null,null,null,null,null,null,null,2.9]
[null,null,null,null,null,null,null,null,null,null,null,null,null,null,null,null,null,null,null,null,null,null,null,null,2.89]
[null,null,null,null,null,null,null,null,null,null,null,null,null,null,null,null,null,null,null,null,null,null,null,null,2.88]
[null,null,null,null,null,null,null,null,null,null,null,null,null,null,null,null,null,null,null,null,null,null,null,null,2.87]
[null,null,null,null,null,null,null,null,null,null,null,null,null,null,null,null,null,null,null,null,null,null,null,null,2.86]
[null,null,null,null,null,null,null,null,null,null,null,null,null,null,null,null,null,null,null,null,null,null,null,null,2.85]
[null,null,null,null,null,null,null,null,null,null,null,null,null,null,null,null,null,null,null,null,null,null,null,null,2.84]
[null,null,null,null,null,null,null,null,null,null,null,null,null,null,null,null,null,null,null,null,null,null,null,null,2.83]
[null,null,null,null,null,null,null,null,null,null,null,null,null,null,null,null,null,null,null,null,null,null,null,null,2.82]
[null,null,null,null,null,null,null,null,null,null,null,null,null,null,null,null,null,null,null,null,null,null,null,null,2.81]
[null,null,null,null,null,null,null,null,null,null,null,null,null,null,null,null,null,null,null,null,null,null,null,null,2.8]
[null,null,null,null,null,null,null,null,null,null,null,null,null,null,null,null,null,null,null,null,null,null,null,null,2.79]
[null,null,null,null,null,null,null,null,null,null,null,null,null,null,null,null,null,null,null,null,null,null,null,null,2.78]
[null,null,null,null,null,null,null,null,null,null,null,null,null,null,null,null,null,null,null,null,null,null,null,null,2.77]
[null,null,null,null,null,null,null,null,null,null,null,null,null,null,null,null,null,null,null,null,null,null,null,null,2.76]
[null,null,null,null,null,null,null,null,null,null,null,null,null,null,null,null,null,null,null,null,null,null,null,null,2.75]
[null,null,null,null,null,null,null,null,null,null,null,null,null,null,null,null,null,null,null,null,null,null,null,null,2.74]
[null,null,null,null,null,null,null,null,null,null,null,null,null,null,null,null,null,null,null,null,null,null,null,null,2.73]
[null,null,null,null,null,null,null,null,null,null,null,null,null,null,null,null,null,null,null,null,null,null,null,null,2.72]
[null,null,null,null,null,null,null,null,null,null,null,null,null,null,null,null,null,null,null,null,null,null,null,null,2.71]
[null,null,null,null,null,null,null,null,null,null,null,null,null,null,null,null,null,null,null,null,null,null,null,null,2.7]
[null,null,null,null,null,null,null,null,null,null,null,null,null,null,null,null,null,null,null,null,null,null,null,null,2.69]
[null,null,null,null,null,null,null,null,null,null,null,null,null,null,null,null,null,null,null,null,null,null,null,null,2.68]
[null,null,null,null,null,null,null,null,null,null,null,null,null,null,null,null,null,null,null,null,null,null,null,null,2.67]
[null,null,null,null,null,null,null,null,null,null,null,null,null,null,null,null,null,null,null,null,null,null,null,null,2.66]
[null,null,null,null,null,null,null,null,null,null,null,null,null,null,null,null,null,null,null,null,null,null,null,null,2.65]
[null,null,null,null,null,null,null,null,null,null,null,null,null,null,null,null,null,null,null,null,null,null,null,null,2.64]
[null,null,null,null,null,null,null,null,null,null,null,null,null,null,null,null,null,null,null,null,null,null,null,null,2.63]
[null,null,null,null,null,null,null,null,null,null,null,null,null,null,null,null,null,null,null,null,null,null,null,null,2.62]
[null,null,null,null,null,null,null,null,null,null,null,null,null,null,null,null,null,null,null,null,null,null,null,null,2.61]
[null,null,null,null,null,null,null,null,null,null,null,null,null,null,null,null,null,null,null,null,null,null,null,null,2.6]
[null,null,null,null,null,null,null,null,null,null,null,null,null,null,null,null,null,null,null,null,null,null,null,null,2.59]
[null,null,null,null,null,null,null,null,null,null,null,null,null,null,null,null,null,null,null,null,null,null,null,null,2.58]
[null,null,null,null,null,null,null,null,null,null,null,null,null,null,null,null,null,null,null,null,null,null,null,null,2.57]
[null,null,null,null,null,null,null,null,null,null,null,null,null,null,null,null,null,null,null,null,null,null,null,null,2.56]
[null,null,null,null,null,null,null,null,null,null,null,null,null,null,null,null,null,null,null,null,null,null,null,null,2.5499999999999998]
[null,null,null,null,null,null,null,null,null,null,null,null,null,null,null,null,null,null,null,null,null,null,null,null,2.54]
[null,null,null,null,null,null,null,null,null,null,null,null,null,null,null,null,null,null,null,null,null,null,null,null,2.5299999999999998]
[null,null,null,null,null,null,null,null,null,null,null,null,null,null,null,null,null,null,null,null,null,null,null,null,2.52]
[null,null,null,null,null,null,null,null,null,null,null,null,null,null,null,null,null,null,null,null,null,null,null,null,2.5099999999999998]
[null,null,null,null,null,null,null,null,null,null,null,null,null,null,null,null,null,null,null,null,null,null,null,null,2.5]
[null,null,null,null,null,null,null,null,null,null,null,null,null,null,null,null,null,null,null,null,null,null,null,null,2.4900000000000002]
[null,null,null,null,null,null,null,null,null,null,null,null,null,null,null,null,null,null,null,null,null,null,null,null,2.48]
[null,null,null,null,null,null,null,null,null,null,null,null,null,null,null,null,null,null,null,null,null,null,null,null,2.4700000000000002]
[null,null,null,null,null,null,null,null,null,null,null,null,null,null,null,null,null,null,null,null,null,null,null,null,2.46]
[null,null,null,null,null,null,null,null,null,null,null,null,null,null,null,null,null,null,null,null,null,null,null,null,2.4500000000000002]
[null,null,null,null,null,null,null,null,null,null,null,null,null,null,null,null,null,null,null,null,null,null,null,null,2.44]
[null,null,null,null,null,null,null,null,null,null,null,null,null,null,null,null,null,null,null,null,null,null,null,null,2.4300000000000002]
[null,null,null,null,null,null,null,null,null,null,null,null,null,null,null,null,null,null,null,null,null,null,null,null,2.42]
[null,null,null,null,null,null,null,null,null,null,null,null,null,null,null,null,null,null,null,null,null,null,null,null,2.41]
[null,null,null,null,null,null,null,null,null,null,null,null,null,null,null,null,null,null,null,null,null,null,null,null,2.4]
[null,null,null,null,null,null,null,null,null,null,null,null,null,null,null,null,null,null,null,null,null,null,null,null,2.39]
[null,null,null,null,null,null,null,null,null,null,null,null,null,null,null,null,null,null,null,null,null,null,null,null,2.38]
[null,null,null,null,null,null,null,null,null,null,null,null,null,null,null,null,null,null,null,null,null,null,null,null,2.37]
[null,null,null,null,null,null,null,null,null,null,null,null,null,null,null,null,null,null,null,null,null,null,null,null,2.36]
[null,null,null,null,null,null,null,null,null,null,null,null,null,null,null,null,null,null,null,null,null,null,null,null,2.35]
[null,null,null,null,null,null,null,null,null,null,null,null,null,null,null,null,null,null,null,null,null,null,null,null,2.34]
[null,null,null,null,null,null,null,null,null,null,null,null,null,null,null,null,null,null,null,null,null,null,null,null,2.33]
[null,null,null,null,null,null,null,null,null,null,null,null,null,null,null,null,null,null,null,null,null,null,null,null,2.3199999999999998]
[null,null,null,null,null,null,null,null,null,null,null,null,null,null,null,null,null,null,null,null,null,null,null,null,2.31]
[null,null,null,null,null,null,null,null,null,null,null,null,null,null,null,null,null,null,null,null,null,null,null,null,2.2999999999999998]
[null,null,null,null,null,null,null,null,null,null,null,null,null,null,null,null,null,null,null,null,null,null,null,null,2.29]
[null,null,null,null,null,null,null,null,null,null,null,null,null,null,null,null,null,null,null,null,null,null,null,null,2.2799999999999998]
[null,null,null,null,null,null,null,null,null,null,null,null,null,null,null,null,null,null,null,null,null,null,null,null,2.27]
[null,null,null,null,null,null,null,null,null,null,null,null,null,null,null,null,null,null,null,null,null,null,null,null,2.2599999999999998]
[null,null,null,null,null,null,null,null,null,null,null,null,null,null,null,null,null,null,null,null,null,null,null,null,2.25]
[null,null,null,null,null,null,null,null,null,null,null,null,null,null,null,null,null,null,null,null,null,null,null,null,2.2400000000000002]
[null,null,null,null,null,null,null,null,null,null,null,null,null,null,null,null,null,null,null,null,null,null,null,null,2.23]
[null,null,null,null,null,null,null,null,null,null,null,null,null,null,null,null,null,null,null,null,null,null,null,null,2.2200000000000002]
[null,null,null,null,null,null,null,null,null,null,null,null,null,null,null,null,null,null,null,null,null,null,null,null,2.21]
[null,null,null,null,null,null,null,null,null,null,null,null,null,null,null,null,null,null,null,null,null,null,null,null,2.2000000000000002]
[null,null,null,null,null,null,null,null,null,null,null,null,null,null,null,null,null,null,null,null,null,null,null,null,2.19]
[null,null,null,null,null,null,null,null,null,null,null,null,null,null,null,null,null,null,null,null,null,null,null,null,2.1800000000000002]
[null,null,null,null,null,null,null,null,null,null,null,null,null,null,null,null,null,null,null,null,null,null,null,null,2.17]
[null,null,null,null,null,null,null,null,null,null,null,null,null,null,null,null,null,null,null,null,null,null,null,null,2.16]
[null,null,null,null,null,null,null,null,null,null,null,null,null,null,null,null,null,null,null,null,null,null,null,null,2.15]
[null,null,null,null,null,null,null,null,null,null,null,null,null,null,null,null,null,null,null,null,null,null,null,null,2.14]
[null,null,null,null,null,null,null,null,null,null,null,null,null,null,null,null,null,null,null,null,null,null,null,null,2.13]
[null,null,null,null,null,null,null,null,null,null,null,null,null,null,null,null,null,null,null,null,null,null,null,null,2.12]
[null,null,null,null,null,null,null,null,null,null,null,null,null,null,null,null,null,null,null,null,null,null,null,null,2.11]
[null,null,null,null,null,null,null,null,null,null,null,null,null,null,null,null,null,null,null,null,null,null,null,null,2.1]
[null,null,null,null,null,null,null,null,null,null,null,null,null,null,null,null,null,null,null,null,null,null,null,null,2.09]
[null,null,null,null,null,null,null,null,null,null,null,null,null,null,null,null,null,null,null,null,null,null,null,null,2.08]
[null,null,null,null,null,null,null,null,null,null,null,null,null,null,null,null,null,null,null,null,null,null,null,null,2.0699999999999998]
[null,null,null,null,null,null,null,null,null,null,null,null,null,null,null,null,null,null,null,null,null,null,null,null,2.06]
[null,null,null,null,null,null,null,null,null,null,null,null,null,null,null,null,null,null,null,null,null,null,null,null,2.0499999999999998]
[null,null,null,null,null,null,null,null,null,null,null,null,null,null,null,null,null,null,null,null,null,null,null,null,2.04]
[null,null,null,null,null,null,null,null,null,null,null,null,null,null,null,null,null,null,null,null,null,null,null,null,2.0299999999999998]
[null,null,null,null,null,null,null,null,null,null,null,null,null,null,null,null,null,null,null,null,null,null,null,null,2.02]
[null,null,null,null,null,null,null,null,null,null,null,null,null,null,null,null,null,null,null,null,null,null,null,null,2.0099999999999998]
[null,null,null,null,null,null,null,null,null,null,null,null,null,null,null,null,null,null,null,null,null,null,null,null,1.99]
[null,null,null,null,null,null,null,null,null,null,null,null,null,null,null,null,null,null,null,null,null,null,null,null,1.98]
[null,null,null,null,null,null,null,null,null,null,null,null,null,null,null,null,null,null,null,null,null,null,null,null,1.97]
[null,null,null,null,null,null,null,null,null,null,null,null,null,null,null,null,null,null,null,null,null,null,null,null,1.96]
[null,null,null,null,null,null,null,null,null,null,null,null,null,null,null,null,null,null,null,null,null,null,null,null,1.95]
[null,null,null,null,null,null,null,null,null,null,null,null,null,null,null,null,null,null,null,null,null,null,null,null,1.94]
[null,null,null,null,null,null,null,null,null,null,null,null,null,null,null,null,null,null,null,null,null,null,null,null,1.93]
[null,null,null,null,null,null,null,null,null,null,null,null,null,null,null,null,null,null,null,null,null,null,null,null,1.92]
[null,null,null,null,null,null,null,null,null,null,null,null,null,null,null,null,null,null,null,null,null,null,null,null,1.91]
[null,null,null,null,null,null,null,null,null,null,null,null,null,null,null,null,null,null,null,null,null,null,null,null,1.9]
[null,null,null,null,null,null,null,null,null,null,null,null,null,null,null,null,null,null,null,null,null,null,null,null,1.89]
[null,null,null,null,null,null,null,null,null,null,null,null,null,null,null,null,null,null,null,null,null,null,null,null,1.88]
[null,null,null,null,null,null,null,null,null,null,null,null,null,null,null,null,null,null,null,null,null,null,null,null,1.87]
[null,null,null,null,null,null,null,null,null,null,null,null,null,null,null,null,null,null,null,null,null,null,null,null,1.86]
[null,null,null,null,null,null,null,null,null,null,null,null,null,null,null,null,null,null,null,null,null,null,null,null,1.85]
[null,null,null,null,null,null,null,null,null,null,null,null,null,null,null,null,null,null,null,null,null,null,null,null,1.84]
[null,null,null,null,null,null,null,null,null,null,null,null,null,null,null,null,null,null,null,null,null,null,null,null,1.83]
[null,null,null,null,null,null,null,null,null,null,null,null,null,null,null,null,null,null,null,null,null,null,null,null,1.82]
[null,null,null,null,null,null,null,null,null,null,null,null,null,null,null,null,null,null,null,null,null,null,null,null,1.81]
[null,null,null,null,null,null,null,null,null,null,null,null,null,null,null,null,null,null,null,null,null,null,null,null,1.8]
[null,null,null,null,null,null,null,null,null,null,null,null,null,null,null,null,null,null,null,null,null,null,null,null,1.79]
[null,null,null,null,null,null,null,null,null,null,null,null,null,null,null,null,null,null,null,null,null,null,null,null,1.78]
[null,null,null,null,null,null,null,null,null,null,null,null,null,null,null,null,null,null,null,null,null,null,null,null,1.77]
[null,null,null,null,null,null,null,null,null,null,null,null,null,null,null,null,null,null,null,null,null,null,null,null,1.76]
[null,null,null,null,null,null,null,null,null,null,null,null,null,null,null,null,null,null,null,null,null,null,null,null,1.75]
[null,null,null,null,null,null,null,null,null,null,null,null,null,null,null,null,null,null,null,null,null,null,null,null,1.74]
[null,null,null,null,null,null,null,null,null,null,null,null,null,null,null,null,null,null,null,null,null,null,null,null,1.73]
[null,null,null,null,null,null,null,null,null,null,null,null,null,null,null,null,null,null,null,null,null,null,null,null,1.72]
[null,null,null,null,null,null,null,null,null,null,null,null,null,null,null,null,null,null,null,null,null,null,null,null,1.71]
[null,null,null,null,null,null,null,null,null,null,null,null,null,null,null,null,null,null,null,null,null,null,null,null,1.7]
[null,null,null,null,null,null,null,null,null,null,null,null,null,null,null,null,null,null,null,null,null,null,null,null,1.69]
[null,null,null,null,null,null,null,null,null,null,null,null,null,null,null,null,null,null,null,null,null,null,null,null,1.68]
[null,null,null,null,null,null,null,null,null,null,null,null,null,null,null,null,null,null,null,null,null,null,null,null,1.67]
[null,null,null,null,null,null,null,null,null,null,null,null,null,null,null,null,null,null,null,null,null,null,null,null,1.66]
[null,null,null,null,null,null,null,null,null,null,null,null,null,null,null,null,null,null,null,null,null,null,null,null,1.65]
[null,null,null,null,null,null,null,null,null,null,null,null,null,null,null,null,null,null,null,null,null,null,null,null,1.64]
[null,null,null,null,null,null,null,null,null,null,null,null,null,null,null,null,null,null,null,null,null,null,null,null,1.63]
[null,null,null,null,null,null,null,null,null,null,null,null,null,null,null,null,null,null,null,null,null,null,null,null,1.62]
[null,null,null,null,null,null,null,null,null,null,null,null,null,null,null,null,null,null,null,null,null,null,null,null,1.61]
[null,null,null,null,null,null,null,null,null,null,null,null,null,null,null,null,null,null,null,null,null,null,null,null,1.6]
[null,null,null,null,null,null,null,null,null,null,null,null,null,null,null,null,null,null,null,null,null,null,null,null,1.59]
[null,null,null,null,null,null,null,null,null,null,null,null,null,null,null,null,null,null,null,null,null,null,null,null,1.58]
[null,null,null,null,null,null,null,null,null,null,null,null,null,null,null,null,null,null,null,null,null,null,null,null,1.57]
[null,null,null,null,null,null,null,null,null,null,null,null,null,null,null,null,null,null,null,null,null,null,null,null,1.56]
[null,null,null,null,null,null,null,null,null,null,null,null,null,null,null,null,null,null,null,null,null,null,null,null,1.55]
[null,null,null,null,null,null,null,null,null,null,null,null,null,null,null,null,null,null,null,null,null,null,null,null,1.54]
[null,null,null,null,null,null,null,null,null,null,null,null,null,null,null,null,null,null,null,null,null,null,null,null,1.53]
[null,null,null,null,null,null,null,null,null,null,null,null,null,null,null,null,null,null,null,null,null,null,null,null,1.52]
[null,null,null,null,null,null,null,null,null,null,null,null,null,null,null,null,null,null,null,null,null,null,null,null,1.51]
[null,null,null,null,null,null,null,null,null,null,null,null,null,null,null,null,null,null,null,null,null,null,null,null,1.5]
[null,null,null,null,null,null,null,null,null,null,null,null,null,null,null,null,null,null,null,null,null,null,null,null,1.49]
[null,null,null,null,null,null,null,null,null,null,null,null,null,null,null,null,null,null,null,null,null,null,null,null,1.48]
[null,null,null,null,null,null,null,null,null,null,null,null,null,null,null,null,null,null,null,null,null,null,null,null,1.47]
[null,null,null,null,null,null,null,null,null,null,null,null,null,null,null,null,null,null,null,null,null,null,null,null,1.46]
[null,null,null,null,null,null,null,null,null,null,null,null,null,null,null,null,null,null,null,null,null,null,null,null,1.45]
[null,null,null,null,null,null,null,null,null,null,null,null,null,null,null,null,null,null,null,null,null,null,null,null,1.44]
[null,null,null,null,null,null,null,null,null,null,null,null,null,null,null,null,null,null,null,null,null,null,null,null,1.43]
[null,null,null,null,null,null,null,null,null,null,null,null,null,null,null,null,null,null,null,null,null,null,null,null,1.42]
[null,null,null,null,null,null,null,null,null,null,null,null,null,null,null,null,null,null,null,null,null,null,null,null,1.41]
[null,null,null,null,null,null,null,null,null,null,null,null,null,null,null,null,null,null,null,null,null,null,null,null,1.4]
[null,null,null,null,null,null,null,null,null,null,null,null,null,null,null,null,null,null,null,null,null,null,null,null,1.39]
[null,null,null,null,null,null,null,null,null,null,null,null,null,null,null,null,null,null,null,null,null,null,null,null,1.38]
[null,null,null,null,null,null,null,null,null,null,null,null,null,null,null,null,null,null,null,null,null,null,null,null,1.37]
[null,null,null,null,null,null,null,null,null,null,null,null,null,null,null,null,null,null,null,null,null,null,null,null,1.36]
[null,null,null,null,null,null,null,null,null,null,null,null,null,null,null,null,null,null,null,null,null,null,null,null,1.35]
[null,null,null,null,null,null,null,null,null,null,null,null,null,null,null,null,null,null,null,null,null,null,null,null,1.34]
[null,null,null,null,null,null,null,null,null,null,null,null,null,null,null,null,null,null,null,null,null,null,null,null,1.33]
[null,null,null,null,null,null,null,null,null,null,null,null,null,null,null,null,null,null,null,null,null,null,null,null,1.32]
[null,null,null,null,null,null,null,null,null,null,null,null,null,null,null,null,null,null,null,null,null,null,null,null,1.31]
[null,null,null,null,null,null,null,null,null,null,null,null,null,null,null,null,null,null,null,null,null,null,null,null,1.3]
[null,null,null,null,null,null,null,null,null,null,null,null,null,null,null,null,null,null,null,null,null,null,null,null,1.29]
[null,null,null,null,null,null,null,null,null,null,null,null,null,null,null,null,null,null,null,null,null,null,null,null,1.28]
[null,null,null,null,null,null,null,null,null,null,null,null,null,null,null,null,null,null,null,null,null,null,null,null,1.27]
[null,null,null,null,null,null,null,null,null,null,null,null,null,null,null,null,null,null,null,null,null,null,null,null,1.26]
[null,null,null,null,null,null,null,null,null,null,null,null,null,null,null,null,null,null,null,null,null,null,null,null,1.25]
[null,null,null,null,null,null,null,null,null,null,null,null,null,null,null,null,null,null,null,null,null,null,null,null,1.24]
[null,null,null,null,null,null,null,null,null,null,null,null,null,null,null,null,null,null,null,null,null,null,null,null,1.23]
[null,null,null,null,null,null,null,null,null,null,null,null,null,null,null,null,null,null,null,null,null,null,null,null,1.22]
[null,null,null,null,null,null,null,null,null,null,null,null,null,null,null,null,null,null,null,null,null,null,null,null,1.21]
[null,null,null,null,null,null,null,null,null,null,null,null,null,null,null,null,null,null,null,null,null,null,null,null,1.2]
[null,null,null,null,null,null,null,null,null,null,null,null,null,null,null,null,null,null,null,null,null,null,null,null,1.19]
[null,null,null,null,null,null,null,null,null,null,null,null,null,null,null,null,null,null,null,null,null,null,null,null,1.18]
[null,null,null,null,null,null,null,null,null,null,null,null,null,null,null,null,null,null,null,null,null,null,null,null,1.17]
[null,null,null,null,null,null,null,null,null,null,null,null,null,null,null,null,null,null,null,null,null,null,null,null,1.1599999999999999]
[null,null,null,null,null,null,null,null,null,null,null,null,null,null,null,null,null,null,null,null,null,null,null,null,1.1499999999999999]
[null,null,null,null,null,null,null,null,null,null,null,null,null,null,null,null,null,null,null,null,null,null,null,null,1.1399999999999999]
[null,null,null,null,null,null,null,null,null,null,null,null,null,null,null,null,null,null,null,null,null,null,null,null,1.1299999999999999]
[null,null,null,null,null,null,null,null,null,null,null,null,null,null,null,null,null,null,null,null,null,null,null,null,1.1200000000000001]
[null,null,null,null,null,null,null,null,null,null,null,null,null,null,null,null,null,null,null,null,null,null,null,null,1.1100000000000001]
[null,null,null,null,null,null,null,null,null,null,null,null,null,null,null,null,null,null,null,null,null,null,null,null,1.1000000000000001]
[null,null,null,null,null,null,null,null,null,null,null,null,null,null,null,null,null,null,null,null,null,null,null,null,1.0900000000000001]
[null,null,null,null,null,null,null,null,null,null,null,null,null,null,null,null,null,null,null,null,null,null,null,null,1.08]
[null,null,null,null,null,null,null,null,null,null,null,null,null,null,null,null,null,null,null,null,null,null,null,null,1.07]
[null,null,null,null,null,null,null,null,null,null,null,null,null,null,null,null,null,null,null,null,null,null,null,null,1.06]
[null,null,null,null,null,null,null,null,null,null,null,null,null,null,null,null,null,null,null,null,null,null,null,null,1.05]
[null,null,null,null,null,null,null,null,null,null,null,null,null,null,null,null,null,null,null,null,null,null,null,null,1.04]
[null,null,null,null,null,null,null,null,null,null,null,null,null,null,null,null,null,null,null,null,null,null,null,null,1.03]
[null,null,null,null,null,null,null,null,null,null,null,null,null,null,null,null,null,null,null,null,null,null,null,null,1.02]
[null,null,null,null,null,null,null,null,null,null,null,null,null,null,null,null,null,null,null,null,null,null,null,null,1.01]
[null,null,null,null,null,null,null,null,null,null,null,null,null,null,null,null,null,null,null,null,null,null,null,null,0.99]
[null,null,null,null,null,null,null,null,null,null,null,null,null,null,null,null,null,null,null,null,null,null,null,null,0.98]
[null,null,null,null,null,null,null,null,null,null,null,null,null,null,null,null,null,null,null,null,null,null,null,null,0.97]
[null,null,null,null,null,null,null,null,null,null,null,null,null,null,null,null,null,null,null,null,null,null,null,null,0.96]
[null,null,null,null,null,null,null,null,null,null,null,null,null,null,null,null,null,null,null,null,null,null,null,null,0.95]
[null,null,null,null,null,null,null,null,null,null,null,null,null,null,null,null,null,null,null,null,null,null,null,null,0.94]
[null,null,null,null,null,null,null,null,null,null,null,null,null,null,null,null,null,null,null,null,null,null,null,null,0.93]
[null,null,null,null,null,null,null,null,null,null,null,null,null,null,null,null,null,null,null,null,null,null,null,null,0.92]
[null,null,null,null,null,null,null,null,null,null,null,null,null,null,null,null,null,null,null,null,null,null,null,null,0.91]
[null,null,null,null,null,null,null,null,null,null,null,null,null,null,null,null,null,null,null,null,null,null,null,null,0.9]
[null,null,null,null,null,null,null,null,null,null,null,null,null,null,null,null,null,null,null,null,null,null,null,null,0.89]
[null,null,null,null,null,null,null,null,null,null,null,null,null,null,null,null,null,null,null,null,null,null,null,null,0.88]
[null,null,null,null,null,null,null,null,null,null,null,null,null,null,null,null,null,null,null,null,null,null,null,null,0.87]
[null,null,null,null,null,null,null,null,null,null,null,null,null,null,null,null,null,null,null,null,null,null,null,null,0.86]
[null,null,null,null,null,null,null,null,null,null,null,null,null,null,null,null,null,null,null,null,null,null,null,null,0.85]
[null,null,null,null,null,null,null,null,null,null,null,null,null,null,null,null,null,null,null,null,null,null,null,null,0.84]
[null,null,null,null,null,null,null,null,null,null,null,null,null,null,null,null,null,null,null,null,null,null,null,null,0.83]
[null,null,null,null,null,null,null,null,null,null,null,null,null,null,null,null,null,null,null,null,null,null,null,null,0.82]
[null,null,null,null,null,null,null,null,null,null,null,null,null,null,null,null,null,null,null,null,null,null,null,null,0.81]
[null,null,null,null,null,null,null,null,null,null,null,null,null,null,null,null,null,null,null,null,null,null,null,null,0.8]
[null,null,null,null,null,null,null,null,null,null,null,null,null,null,null,null,null,null,null,null,null,null,null,null,0.79]
[null,null,null,null,null,null,null,null,null,null,null,null,null,null,null,null,null,null,null,null,null,null,null,null,0.78]
[null,null,null,null,null,null,null,null,null,null,null,null,null,null,null,null,null,null,null,null,null,null,null,null,0.77]
[null,null,null,null,null,null,null,null,null,null,null,null,null,null,null,null,null,null,null,null,null,null,null,null,0.76]
[null,null,null,null,null,null,null,null,null,null,null,null,null,null,null,null,null,null,null,null,null,null,null,null,0.75]
[null,null,null,null,null,null,null,null,null,null,null,null,null,null,null,null,null,null,null,null,null,null,null,null,0.74]
[null,null,null,null,null,null,null,null,null,null,null,null,null,null,null,null,null,null,null,null,null,null,null,null,0.73]
[null,null,null,null,null,null,null,null,null,null,null,null,null,null,null,null,null,null,null,null,null,null,null,null,0.72]
[null,null,null,null,null,null,null,null,null,null,null,null,null,null,null,null,null,null,null,null,null,null,null,null,0.71]
[null,null,null,null,null,null,null,null,null,null,null,null,null,null,null,null,null,null,null,null,null,null,null,null,0.7]
[null,null,null,null,null,null,null,null,null,null,null,null,null,null,null,null,null,null,null,null,null,null,null,null,0.69]
[null,null,null,null,null,null,null,null,null,null,null,null,null,null,null,null,null,null,null,null,null,null,null,null,0.68]
[null,null,null,null,null,null,null,null,null,null,null,null,null,null,null,null,null,null,null,null,null,null,null,null,0.67]
[null,null,null,null,null,null,null,null,null,null,null,null,null,null,null,null,null,null,null,null,null,null,null,null,0.66]
[null,null,null,null,null,null,null,null,null,null,null,null,null,null,null,null,null,null,null,null,null,null,null,null,0.65]
[null,null,null,null,null,null,null,null,null,null,null,null,null,null,null,null,null,null,null,null,null,null,null,null,0.64]
[null,null,null,null,null,null,null,null,null,null,null,null,null,null,null,null,null,null,null,null,null,null,null,null,0.63]
[null,null,null,null,null,null,null,null,null,null,null,null,null,null,null,null,null,null,null,null,null,null,null,null,0.62]
[null,null,null,null,null,null,null,null,null,null,null,null,null,null,null,null,null,null,null,null,null,null,null,null,0.61]
[null,null,null,null,null,null,null,null,null,null,null,null,null,null,null,null,null,null,null,null,null,null,null,null,0.6]
[null,null,null,null,null,null,null,null,null,null,null,null,null,null,null,null,null,null,null,null,null,null,null,null,0.59]
[null,null,null,null,null,null,null,null,null,null,null,null,null,null,null,null,null,null,null,null,null,null,null,null,0.57999999999999996]
[null,null,null,null,null,null,null,null,null,null,null,null,null,null,null,null,null,null,null,null,null,null,null,null,0.56999999999999995]
[null,null,null,null,null,null,null,null,null,null,null,null,null,null,null,null,null,null,null,null,null,null,null,null,0.56000000000000005]
[null,null,null,null,null,null,null,null,null,null,null,null,null,null,null,null,null,null,null,null,null,null,null,null,0.55000000000000004]
[null,null,null,null,null,null,null,null,null,null,null,null,null,null,null,null,null,null,null,null,null,null,null,null,0.54]
[null,null,null,null,null,null,null,null,null,null,null,null,null,null,null,null,null,null,null,null,null,null,null,null,0.53]
[null,null,null,null,null,null,null,null,null,null,null,null,null,null,null,null,null,null,null,null,null,null,null,null,0.52]
[null,null,null,null,null,null,null,null,null,null,null,null,null,null,null,null,null,null,null,null,null,null,null,null,0.51]
[null,null,null,null,null,null,null,null,null,null,null,null,null,null,null,null,null,null,null,null,null,null,null,null,0.5]
[null,null,null,null,null,null,null,null,null,null,null,null,null,null,null,null,null,null,null,null,null,null,null,null,0.49]
[null,null,null,null,null,null,null,null,null,null,null,null,null,null,null,null,null,null,null,null,null,null,null,null,0.48]
[null,null,null,null,null,null,null,null,null,null,null,null,null,null,null,null,null,null,null,null,null,null,null,null,0.47]
[null,null,null,null,null,null,null,null,null,null,null,null,null,null,null,null,null,null,null,null,null,null,null,null,0.46]
[null,null,null,null,null,null,null,null,null,null,null,null,null,null,null,null,null,null,null,null,null,null,null,null,0.45]
[null,null,null,null,null,null,null,null,null,null,null,null,null,null,null,null,null,null,null,null,null,null,null,null,0.44]
[null,null,null,null,null,null,null,null,null,null,null,null,null,null,null,null,null,null,null,null,null,null,null,null,0.43]
[null,null,null,null,null,null,null,null,null,null,null,null,null,null,null,null,null,null,null,null,null,null,null,null,0.42]
[null,null,null,null,null,null,null,null,null,null,null,null,null,null,null,null,null,null,null,null,null,null,null,null,0.41]
[null,null,null,null,null,null,null,null,null,null,null,null,null,null,null,null,null,null,null,null,null,null,null,null,0.4]
[null,null,null,null,null,null,null,null,null,null,null,null,null,null,null,null,null,null,null,null,null,null,null,null,0.39]
[null,null,null,null,null,null,null,null,null,null,null,null,null,null,null,null,null,null,null,null,null,null,null,null,0.38]
[null,null,null,null,null,null,null,null,null,null,null,null,null,null,null,null,null,null,null,null,null,null,null,null,0.37]
[null,null,null,null,null,null,null,null,null,null,null,null,null,null,null,null,null,null,null,null,null,null,null,null,0.36]
[null,null,null,null,null,null,null,null,null,null,null,null,null,null,null,null,null,null,null,null,null,null,null,null,0.35]
[null,null,null,null,null,null,null,null,null,null,null,null,null,null,null,null,null,null,null,null,null,null,null,null,0.34]
[null,null,null,null,null,null,null,null,null,null,null,null,null,null,null,null,null,null,null,null,null,null,null,null,0.33]
[null,null,null,null,null,null,null,null,null,null,null,null,null,null,null,null,null,null,null,null,null,null,null,null,0.32]
[null,null,null,null,null,null,null,null,null,null,null,null,null,null,null,null,null,null,null,null,null,null,null,null,0.31]
[null,null,null,null,null,null,null,null,null,null,null,null,null,null,null,null,null,null,null,null,null,null,null,null,0.3]
[null,null,null,null,null,null,null,null,null,null,null,null,null,null,null,null,null,null,null,null,null,null,null,null,0.28999999999999998]
[null,null,null,null,null,null,null,null,null,null,null,null,null,null,null,null,null,null,null,null,null,null,null,null,0.28000000000000003]
[null,null,null,null,null,null,null,null,null,null,null,null,null,null,null,null,null,null,null,null,null,null,null,null,0.27]
[null,null,null,null,null,null,null,null,null,null,null,null,null,null,null,null,null,null,null,null,null,null,null,null,0.26]
[null,null,null,null,null,null,null,null,null,null,null,null,null,null,null,null,null,null,null,null,null,null,null,null,0.25]
[null,null,null,null,null,null,null,null,null,null,null,null,null,null,null,null,null,null,null,null,null,null,null,null,0.24]
[null,null,null,null,null,null,null,null,null,null,null,null,null,null,null,null,null,null,null,null,null,null,null,null,0.23]
[null,null,null,null,null,null,null,null,null,null,null,null,null,null,null,null,null,null,null,null,null,null,null,null,0.22]
[null,null,null,null,null,null,null,null,null,null,null,null,null,null,null,null,null,null,null,null,null,null,null,null,0.21]
[null,null,null,null,null,null,null,null,null,null,null,null,null,null,null,null,null,null,null,null,null,null,null,null,0.2]
[null,null,null,null,null,null,null,null,null,null,null,null,null,null,null,null,null,null,null,null,null,null,null,null,0.19]
[null,null,null,null,null,null,null,null,null,null,null,null,null,null,null,null,null,null,null,null,null,null,null,null,0.18]
[null,null,null,null,null,null,null,null,null,null,null,null,null,null,null,null,null,null,null,null,null,null,null,null,0.17]
[null,null,null,null,null,null,null,null,null,null,null,null,null,null,null,null,null,null,null,null,null,null,null,null,0.16]
[null,null,null,null,null,null,null,null,null,null,null,null,null,null,null,null,null,null,null,null,null,null,null,null,0.15]
[null,null,null,null,null,null,null,null,null,null,null,null,null,null,null,null,null,null,null,null,null,null,null,null,0.14000000000000001]
[null,null,null,null,null,null,null,null,null,null,null,null,null,null,null,null,null,null,null,null,null,null,null,null,0.13]
[null,null,null,null,null,null,null,null,null,null,null,null,null,null,null,null,null,null,null,null,null,null,null,null,0.12]
[null,null,null,null,null,null,null,null,null,null,null,null,null,null,null,null,null,null,null,null,null,null,null,null,0.11]
[null,null,null,null,null,null,null,null,null,null,null,null,null,null,null,null,null,null,null,null,null,null,null,null,0.1]
[null,null,null,null,null,null,null,null,null,null,null,null,null,null,null,null,null,null,null,null,null,null,null,null,0.09]
[null,null,null,null,null,null,null,null,null,null,null,null,null,null,null,null,null,null,null,null,null,null,null,null,0.08]
[null,null,null,null,null,null,null,null,null,null,null,null,null,null,null,null,null,null,null,null,null,null,null,null,7.0000000000000007E-2]
[null,null,null,null,null,null,null,null,null,null,null,null,null,null,null,null,null,null,null,null,null,null,null,null,0.06]
[null,null,null,null,null,null,null,null,null,null,null,null,null,null,null,null,null,null,null,null,null,null,null,null,0.05]
[null,null,null,null,null,null,null,null,null,null,null,null,null,null,null,null,null,null,null,null,null,null,null,null,0.04]
[null,null,null,null,null,null,null,null,null,null,null,null,null,null,null,null,null,null,null,null,null,null,null,null,0.03]
[null,null,null,null,null,null,null,null,null,null,null,null,null,null,null,null,null,null,null,null,null,null,null,null,0.02]
[null,null,null,null,null,null,null,null,null,null,null,null,null,null,null,null,null,null,null,null,null,null,null,null,0.01]

{"sheet":"Hilfsvariablen","index":2,"n_rows":44,"n_cols":6,"rows_kept":44,"cut":false,"hidden":true,"merged":[]}
["Entgeltschlüssel",{"$f":"CONCATENATE(E14,\"_\",'Auswahl Zukunftsbetrag'!B9,\"_\",'Auswahl Zukunftsbetrag'!B6,\"_\",'Auswahl Zukunftsbetrag'!B8,\"_\",'Auswahl Zukunftsbetrag'!B7)","v":"2025_Bayern_E01_-_-"}]
["Entgelt",{"$f":"VLOOKUP(B1,Entgelttabelle,7,FALSE)*'Auswahl Zukunftsbetrag'!B10","v":3080}]
["Zukunftsbetraganspruch in Prozent vom Gehalt",0.23,null,"PlusCard","Tarif/alter","Kosten"]
["Zukunftsbetrag",{"$f":"IF(B15=\"\",\"0\",B2*B3)","v":"0"},null,"Tarif",{"$f":"'Auswahl Zukunftsbetrag'!B23","v":"select"},{"$f":"VLOOKUP(Hilfsvariablen!E4,Datenbasis1!AC2:AD4,2,FALSE)","v":12.67}]
["max. Tage Freistellung",{"$f":"ROUNDDOWN('Auswahl Zukunftsbetrag'!B11,0)","v":5},{"$f":"IF(ROUNDDOWN('Auswahl Zukunftsbetrag'!B11,0)-IF(OR('Auswahl Zukunftsbetrag'!B22=\"Freistellung & Auszahlung\",'Auswahl Zukunftsbetrag'!B22=\"Freistellung & PlusCard\",'Auswahl Zukunftsbetrag'!B22=\"Freistellung & Langzeitkonto\"),1,0)<0,0,ROUNDDOWN('Auswahl Zukunftsbetrag'!B11,0)-IF(OR('Auswahl Zukunftsbetrag'!B22=\"Freistellung & Auszahlung\",'Auswahl Zukunftsbetrag'!B22=\"Freistellung & PlusCard\",'Auswahl Zukunftsbetrag'!B22=\"Freistellung & Langzeitkonto\"),1,0))","v":5},"FamilienTarif",{"$f":"'Auswahl Zukunftsbetrag'!B25","v":"comfort"},"-"]
["Wert 1 Tage Freitstellung",{"$f":"ROUND(B4/'Auswahl Zukunftsbetrag'!B11,2)","v":0},null,"Ehepartner",{"$f":"'Auswahl Zukunftsbetrag'!B26","v":"-"},{"$f":"IF('Auswahl Zukunftsbetrag'!B24=\"Ja\",VLOOKUP(\"Ehepartner_\"&E6&\"_\"&E$5,PlusCardTariftabelleFamilie,5,FALSE),0)","v":0}]
["Gewählte Tage Freistellung",{"$f":"VLOOKUP('Auswahl Zukunftsbetrag'!B30,Datenbasis1!AU2:AV7,2,FALSE)","v":1},null,"Kind1",{"$f":"'Auswahl Zukunftsbetrag'!B27","v":"-"},{"$f":"IF('Auswahl Zukunftsbetrag'!B24=\"Ja\",VLOOKUP(\"Kind_\"&E7&\"_\"&E$5,PlusCardTariftabelleFamilie,5,FALSE),0)","v":0}]
["Betrag Freistellung",{"$f":"IF(B5>0,ROUND(((B4/'Auswahl Zukunftsbetrag'!B11)*B7),2),0)","v":0},null,"Kind2",{"$f":"'Auswahl Zukunftsbetrag'!B28","v":"-"},{"$f":"IF('Auswahl Zukunftsbetrag'!B24=\"Ja\",VLOOKUP(\"Kind_\"&E8&\"_\"&E$5,PlusCardTariftabelleFamilie,5,FALSE),0)","v":0}]
["PassenderTarifvertrag",{"$f":"VLOOKUP('Auswahl Zukunftsbetrag'!$B$3,GesellschaftTarifvertrag,2,FALSE)","v":{"$error":"#N/A"}},null,"Kind3",{"$f":"'Auswahl Zukunftsbetrag'!B29","v":"-"},{"$f":"IF('Auswahl Zukunftsbetrag'!B24=\"Ja\",VLOOKUP(\"Kind_\"&E9&\"_\"&E$5,PlusCardTariftabelleFamilie,5,FALSE),0)","v":0}]
[{"$f":"CONCATENATE(\"Eintrittsdatum vor \",TEXT(Hilfsvariablen!E16,\"TT.MM.JJJJ\"))","v":"Eintrittsdatum vor 03.01.2025"},{"$f":"'Auswahl Zukunftsbetrag'!B4","v":"Ja"},null,"Summe",null,{"$f":"SUM(F4:F9)","v":12.67}]
["Langzeitkonto möglich",{"$f":"IF(OR($B$9=\"Nein\",$B$10=\"Nein\",'Auswahl Zukunftsbetrag'!$B$5<>\"Tariflich\",'Auswahl Zukunftsbetrag'!$B$12=\"befristet\",'Auswahl Zukunftsbetrag'!$B$14=\"Ja\",'Auswahl Zukunftsbetrag'!$B$15=\"Passivphase\",'Auswahl Zukunftsbetrag'!$B$15=\"Aktivphase\",'Auswahl Zukunftsbetrag'!$B$16=\"Ja\"),\"Nein\",\"Ja\")","v":{"$error":"#N/A"}}]
["Freistellung möglich",{"$f":"IF(OR($B$9=\"Nein\",$B$10=\"Nein\",'Auswahl Zukunftsbetrag'!$B$5<>\"Tariflich\",'Auswahl Zukunftsbetrag'!$B$14=\"Ja\",'Auswahl Zukunftsbetrag'!$B$15=\"Passivphase\",'Auswahl Zukunftsbetrag'!$B$16=\"Ja\",B5<1),\"Nein\",\"Ja\")","v":{"$error":"#N/A"}}]
["PlusCard möglich",{"$f":"IF(OR($B$9=\"Nein\",$B$10=\"Nein\",'Auswahl Zukunftsbetrag'!$B$5<>\"Tariflich\",'Auswahl Zukunftsbetrag'!$B$12=\"befristet\",'Auswahl Zukunftsbetrag'!$B$14=\"Ja\",'Auswahl Zukunftsbetrag'!$B$15=\"Passivphase\",'Auswahl Zukunftsbetrag'!$B$16=\"Ja\"),\"Nein\",\"Ja\")","v":{"$error":"#N/A"}},null,"Datum anzeigen?","Nein"]
["Auszahlung möglich",{"$f":"IF(OR($B$9=\"Nein\",$B$10=\"Nein\",AND('Auswahl Zukunftsbetrag'!$B$5<>\"Tariflich\",'Auswahl Zukunftsbetrag'!$B$5=\"Auszubildende/Auszubildender\",'Auswahl Zukunftsbetrag'!$B$5=\"Duale Studentin/Dualer Student\"),'Auswahl Zukunftsbetrag'!$B$14=\"Ja\",'Auswahl Zukunftsbetrag'!$B$15=\"Passivphase\",'Auswahl Zukunftsbetrag'!$B$16=\"Ja\"),\"Nein\",\"Ja\")","v":{"$error":"#N/A"}},null,"Jahr ",2025]
[{"$f":"CONCATENATE(\"Verwendungsmöglichkeiten \",E14)","v":"Verwendungsmöglichkeiten 2025"},{"$f":"IF(ISERROR(_xlfn.TEXTJOIN(\", \",TRUE,IF(B11=\"Ja\",\"Langzeitkonto\",\"\"),IF(B12=\"Ja\",\"Individuelle Freistellungstage\",\"\"),IF(B13=\"Ja\",\"Pluscard\",\"\"))),\"\",_xlfn.TEXTJOIN(\", \",TRUE,IF(B11=\"Ja\",\"Langzeitkonto\",\"\"),IF(B12=\"Ja\",\"Individuelle Freistellungstage\",\"\"),IF(B13=\"Ja\",\"Pluscard\",\"\")))","v":""},null,"1. Werktag",{"$f":"WORKDAY(DATE(E14,1,1),1)","v":"2025-01-02"}]
[{"$f":"CONCATENATE(\"Ergebnis Zukunftsbetrag \",E14)","v":"Ergebnis Zukunftsbetrag 2025"},{"$f":"IF('Auswahl Zukunftsbetrag'!B3=\"\",\"Bitte wählen Sie eine Gesellschaft aus und füllen das Formular anschließend von oben nach unten aus!\",IF(OR(ISERROR(Hilfsvariablen!B2),ISERROR(Hilfsvariablen!B4),ISERROR(Hilfsvariablen!B15)),\"Bitte Parameter prüfen, ungültige Kombination gefunden!\nHinweis: Das Formular ist von oben nach unten auszufüllen\",CONCATENATE(IF(Hilfsvariablen!B15=\"\",IF(AND(B14=\"Ja\",OR('Auswahl Zukunftsbetrag'!$B$5=\"Auszubildende/Auszubildender\",'Auswahl Zukunftsbetrag'!$B$5=\"Duale Studentin/Dualer Student\")),CONCATENATE(\"Auf Grund Ihrer Eingaben können Sie Ihren tariflichen Zukunftsbetrag \",IF(E13=\"Ja\",CONCATENATE(E14, \" \"),\"\"),\"für folgende Verwendungsmöglichkeiten einsetzen:\n\nAuszahlung gemäß Sonderregelung im Tarifvertrag\"),CONCATENATE(\"Auf Grund Ihrer Eingaben haben Sie keinen Anspruch auf den tariflichen Zukunftsbetrag\",IF(E13=\"Ja\",CONCATENATE(\" \",E14),\"\"),\"!\")),CONCATENATE(IF('Auswahl Zukunftsbetrag'!$B$5<>\"Außertariflich\",CONCATENATE(\"Ihr tariflicher Zukunftsbetrag \", IF(E13=\"Ja\",CONCATENATE(E14, \" \"),\"\"),\"beträgt gemäß Ihrer Eingaben\n\",TEXT(Hilfsvariablen!B4,\"0,00\"),\" € (brutto).\",\"\n\n\"),\"\"),\"Für einen Anspruch muss zum Stichtag \",IF(E13=\"Ja\",TEXT(Hilfsvariablen!E15,\"TT.MM.JJJJ\"),\"(= erster Werktag des Anspruchsjahres)\"),\" Entgelt oder\n Entgeltfortzahlung aus einem ungekündigten Anstellungsverhältnis bezogen werden.\")))))","v":"Bitte wählen Sie eine Gesellschaft aus und füllen das Formular anschließend von oben nach unten aus!"},null,"1 Tag nach 1. Werktag",{"$f":"E15+1","v":"2025-01-03"}]
["Hilfsergebnis",{"$f":"IF(OR(B16=\"Auf Grund Ihrer Eingaben haben Sie keinen Anspruch auf den tariflichen Zukunftsbetrag \"&E14&\"!\",B16=\"Bitte wählen Sie eine Gesellschaft aus und füllen das Formular anschließend von oben nach unten aus!\",B16=\"Bitte Parameter prüfen, ungültige Kombination gefunden!\nHinweis: Das Formular ist von oben nach unten auszufüllen\"),\"Kein Zukunftsbetrag\",IF(NOT(ISERROR(FIND(\"Sonderregelung\",B16,1))),\"Auszahlung gemäß Sonderregelung im Tarifvertrag\",\"\"))","v":"Kein Zukunftsbetrag"}]
[]
["Hinweistext","- Zur vereinfachten Bearbeitung ist ein Makro notwendig, hierfür im Dialog <Makros aktivieren> klicken oder im gelben Menüband <Inhalt aktivieren> klicken\n\n- Das Formular ist von oben nach unten auszufüllen, da einige Auswahlmöglichkeiten voneinander abhängen\n\n- Ändert man nachträglich einen Eintrag, so sind alle folgenden Auswahlmöglichkeiten erneut auf gültige Werte zu prüfen (falls erforderlich: Button \"Formular komplett zurücksetzen\" nutzen)"]
[null,null,"Restbetrag","PlusCard","Freistellung"]
["Ergebnis Freistellung & Langzeitkonto",{"$f":"IF(C21<0,\"Die von Ihnen gewählten Verwendungszwecke übersteigen die Höhe Ihres tariflichen Zukunftsbetrages.\nBitte treffen Sie eine andere Auswahl.\",CONCATENATE(\"Sie haben \",'Auswahl Zukunftsbetrag'!B30,\" gewählt.\",IF(C21>0,\" \nDer Restbetrag in Höhe von \"&TEXT(C21,\"0,00\")&\" € (brutto) wird mit der Gehaltsabrechnung April \"&E14&\" in das Langzeitkonto eingezahlt.\",\"\")))","v":"Sie haben 1 Tag Freistellung gewählt."},{"$f":"ROUND(B$4-D21-E21,2)","v":0},null,{"$f":"B$8","v":0}]
["Ergebnis Freistellung & PlusCard",{"$f":"IF(C22<0,CONCATENATE(\"Die von Ihnen gewählten Verwendungszwecke übersteigen die Höhe Ihres tariflichen Zukunftsbetrages.\nDer ausstehende Restbetrag von \",TEXT(ROUNDDOWN(C22/12*-1,2),\"0,00\"),\" Euro monatlich wird von Ihrem Netto-Entgelt abgezogen.\"),CONCATENATE(\"Sie haben \",'Auswahl Zukunftsbetrag'!B30,\" gewählt. \nZudem wird ein Betrag in Höhe von \",TEXT(D22,\"0,00\"),\" € für die PlusCard genutzt. \nDer Restbetrag in Höhe von \",TEXT(C22,\"0,00\"),\" € (brutto) wird mit der Gehaltsabrechnung an Sie ausgezahlt.\"))","v":"Die von Ihnen gewählten Verwendungszwecke übersteigen die Höhe Ihres tariflichen Zukunftsbetrages.\nDer ausstehende Restbetrag von 12,67 Euro monatlich wird von Ihrem Netto-Entgelt abgezogen."},-152.04,{"$f":"ROUND(F$10*12,2)","v":152.04},{"$f":"B$8","v":0}]
["Ergebnis Langzeitkonto",{"$f":"IF(C23<0,\"Die von Ihnen gewählten Verwendungszwecke übersteigen die Höhe Ihres tariflichen Zukunftsbetrages.\nBitte treffen Sie eine andere Auswahl.\",CONCATENATE(\"Ihr tariflicher Zukunftsbetrag \"&E14&\" in Höhe von \",TEXT(C23,\"0,00\"),\" € (brutto) \nwird mit der Gehaltsabrechnung April \"&E14&\" in das Langzeitkonto eingebracht.\"))","v":"Ihr tariflicher Zukunftsbetrag 2025 in Höhe von 0,00 € (brutto) \nwird mit der Gehaltsabrechnung April 2025 in das Langzeitkonto eingebracht."},0]
["Ergebnis Langzeitkonto & PlusCard",{"$f":"IF(C24<0,CONCATENATE(\"Die von Ihnen gewählten Verwendungszwecke übersteigen die Höhe Ihres tariflichen Zukunftsbetrages.\nDer ausstehende Restbetrag von \",TEXT(ROUNDDOWN(C24/12*-1,2),\"0,00\"),\" Euro monatlich wird von Ihrem Netto-Entgelt abgezogen.\"),CONCATENATE(\"Ihr tariflicher Zukunftsbetrag \"&E14&\" wird i.H.v. \",TEXT(D24,\"0,00\"),\" € für die PlusCard genutzt. \nDer Restbetrag in Höhe von \",TEXT(C24,\"0,00\"),\" € (brutto) wird mit der Gehaltsabrechnung April \"&E14&\" in das Langzeitkonto eingezahlt.\"))","v":"Die von Ihnen gewählten Verwendungszwecke übersteigen die Höhe Ihres tariflichen Zukunftsbetrages.\nDer ausstehende Restbetrag von 12,67 Euro monatlich wird von Ihrem Netto-Entgelt abgezogen."},-152.04,{"$f":"ROUND(F$10*12,2)","v":152.04}]
["Ergebnis PlusCard",{"$f":"IF(C25<0,CONCATENATE(\"Die von Ihnen gewählten Verwendungszwecke übersteigen die Höhe Ihres tariflichen Zukunftsbetrages.\nDer ausstehende Restbetrag von \",TEXT(ROUNDDOWN(C25/12*-1,2),\"0,00\"),\" Euro monatlich wird von Ihrem Netto-Entgelt abgezogen.\"),CONCATENATE(\"Ihr tariflicher Zukunftsbetrag \"&E14&\" wird i.H.v. \",TEXT(D25,\"0,00\"),\" € für die PlusCard genutzt. \nDer Restbetrag in Höhe von \",TEXT(C25,\"0,00\"),\" € (brutto) wird mit der Gehaltsabrechnung an Sie ausgezahlt.\"))","v":"Die von Ihnen gewählten Verwendungszwecke übersteigen die Höhe Ihres tariflichen Zukunftsbetrages.\nDer ausstehende Restbetrag von 12,67 Euro monatlich wird von Ihrem Netto-Entgelt abgezogen."},-152.04,{"$f":"ROUND(F$10*12,2)","v":152.04}]
["Ergebnis Freistellung & Auszahlung",{"$f":"IF(C26<0,\"Die von Ihnen gewählten Verwendungszwecke übersteigen die Höhe Ihres tariflichen Zukunftsbetrages.\nBitte treffen Sie eine andere Auswahl.\",CONCATENATE(\"Sie haben \",'Auswahl Zukunftsbetrag'!B30,\" gewählt.\",IF(C26>0,\"\nDer Restbetrag in Höhe von \"&TEXT(C26,\"0,00\")&\" € (brutto) wird mit der Gehaltsabrechnung April \"&E14&\" an Sie ausgezahlt.\",\"\")))","v":"Sie haben 1 Tag Freistellung gewählt."},0,null,0]
["Ergebnis Freistellung",{"$f":"IF(C27<0,\"Die von Ihnen gewählten Verwendungszwecke übersteigen die Höhe Ihres tariflichen Zukunftsbetrages.\nBitte treffen Sie eine andere Auswahl.\",CONCATENATE(\"Sie haben Anspruch auf \",'Auswahl Zukunftsbetrag'!B30,\".\",IF(C27>0,\"  \nDer Restbetrag in Höhe von \"&TEXT(C27,\"0,00\")&\" € (brutto) wird mit der Gehaltsabrechnung April \"&E14&\" an Sie ausgezahlt. \",\"\")))","v":"Sie haben Anspruch auf 1 Tag Freistellung."},0,null,0]
["Ergebnis Auszahlung",{"$f":"IF(C28<0,\"Die von Ihnen gewählten Verwendungszwecke übersteigen die Höhe Ihres tariflichen Zukunftsbetrages.\nBitte treffen Sie eine andere Auswahl.\",CONCATENATE(\"Ihr tariflicher Zukunftsbetrag \"&E14&\" in Höhe von \",TEXT(C28,\"0,00\"),\" € (brutto) wird mit der Gehaltsabrechnung April \"&E14&\" an Sie ausgezahlt.\"))","v":"Ihr tariflicher Zukunftsbetrag 2025 in Höhe von 0,00 € (brutto) wird mit der Gehaltsabrechnung April 2025 an Sie ausgezahlt."},0]
["Ergebnis der gewählten Verwendungsmöglichkeit 2022",{"$f":"IF('Auswahl Zukunftsbetrag'!B3=\"\",\"Bitte wählen Sie eine Gesellschaft aus und füllen das Formular anschließend von oben nach unten aus!\",IF(B17=\"Kein Zukunftsbetrag\",\"Auf Grund Ihrer Eingaben haben Sie keine verfügbare Verwendungsmöglichket für den Zukunftsbetrag \"&E14&\"!\",IF(B17=\"Auszahlung gemäß Sonderregelung im Tarifvertrag\",\"Auszahlung gemäß Sonderregelung im Tarifvertrag\",IF(OR(AND('Auswahl Zukunftsbetrag'!B12=\"befristet\",'Auswahl Zukunftsbetrag'!B22<>\"Freistellung & Auszahlung\",'Auswahl Zukunftsbetrag'!B22<>\"Freistellung\",'Auswahl Zukunftsbetrag'!B22<>\"Auszahlung\"),AND('Auswahl Zukunftsbetrag'!B24=\"Ja\",'Auswahl Zukunftsbetrag'!B26=\"-\",'Auswahl Zukunftsbetrag'!B27=\"-\"),AND(B5=0,OR('Auswahl Zukunftsbetrag'!B22=\"Freistellung & Langzeitkonto\",'Auswahl Zukunftsbetrag'!B22=\"Freistellung & PlusCard\",'Auswahl Zukunftsbetrag'!B22=\"Freistellung & Auszahlung\")),AND(B7>C5,OR('Auswahl Zukunftsbetrag'!B22=\"Freistellung & Langzeitkonto\",'Auswahl Zukunftsbetrag'!B22=\"Freistellung & PlusCard\",'Auswahl Zukunftsbetrag'!B22=\"Freistellung & Auszahlung\",'Auswahl Zukunftsbetrag'!B22=\"Freistellung\")),AND(OR(B7<B5,B5=0),'Auswahl Zukunftsbetrag'!B22=\"Freistellung\")),\"Bitte Parameter prüfen, ungültige Kombination gefunden!\nHinweis: Das Formular ist von oben nach unten auszufüllen\",IF('Auswahl Zukunftsbetrag'!B22=\"Freistellung & Langzeitkonto\",Hilfsvariablen!B21,IF('Auswahl Zukunftsbetrag'!B22=\"Freistellung & PlusCard\",Hilfsvariablen!B22,IF('Auswahl Zukunftsbetrag'!B22=\"Langzeitkonto\",Hilfsvariablen!B23,IF('Auswahl Zukunftsbetrag'!B22=\"Langzeitkonto & PlusCard\",Hilfsvariablen!B24,IF('Auswahl Zukunftsbetrag'!B22=\"PlusCard\",Hilfsvariablen!B25,IF('Auswahl Zukunftsbetrag'!B22=\"Freistellung & Auszahlung\",Hilfsvariablen!B26,IF('Auswahl Zukunftsbetrag'!B22=\"Freistellung\",Hilfsvariablen!B27,IF('Auswahl Zukunftsbetrag'!B22=\"Auszahlung\",Hilfsvariablen!B28,\"Bitte wählen Sie eine gültige Verwendungsmöglichkeit aus!\"))))))))))))","v":"Bitte wählen Sie eine Gesellschaft aus und füllen das Formular anschließend von oben nach unten aus!"}]
[]
[]
["Befristet",{"$f":"IF('Auswahl Zukunftsbetrag'!$B$12=\"befristet\",\"Ja\",\"Nein\")","v":"Nein"}]
["AlterteilzeitOderOhneEntgeltOderFreigestellt",{"$f":"IF(OR('Auswahl Zukunftsbetrag'!$B$14=\"Ja\",'Auswahl Zukunftsbetrag'!$B$15=\"Passivphase\",'Auswahl Zukunftsbetrag'!$B$15=\"Aktivphase\",'Auswahl Zukunftsbetrag'!$B$16=\"Ja\"),\"Ja\",\"Nein\")","v":"Nein"}]
["Freistellung möglich",{"$f":"IF(B5>0,\"Ja\",\"Nein\")","v":"Ja"}]
["Freistellung Kombination möglich",{"$f":"IF(B5>1,\"Ja\",\"Nein\")","v":"Ja"}]
[]
[]
["PrintMsg","Hiermit wird das Formular ohne Voransicht direkt auf dem Standarddrucker des Systems gedruckt. Zum Drucken mit Voransicht/Druckerauswahl verwenden Sie bitte das Menü Datei->Drucken"]
["PrintTitle","Auf Standarddrucker drucken?"]
["ResetMsg","Alle Eingaben gehen verloren. Wollen Sie wirklich fortfahren? \n\n(währenddessen wird Excel eventuell kurzzeitig nicht reagieren!)"]
["ResetTitle","Alles zurücksetzen?"]
["StartText","<--- Zum Starten eine Gesellschaft auswählen"]
["ResetSuccessMsg","Formularfelder erfolgreich zurückgesetzt!"]
["ResetSuccessMsgTitle","Alle Eingaben zurückgesetzt"]